Workbook

Sheet z-Substitution
B1: Visualizing the z-Substitution
C3: This DIGMath spreadsheet lets you
C4: visualize the process of
C5: Integration with the z-Substitution
C6: for rational functions of sine and cosine
A11: What is the value of the constant a? | D11: 2
A13: What is the value of the constant b? | D13: 3
J14: Pick a tracing point x0 = | M14: =a+K15*dx -> 2.445
A15: What is the value of the constant c? | D15: 1 | K15: 163
I17: The corresponding transformed point is z = | P17: =TAN(x0/2) -> 2.754069733
A18: The z-substitution is then | D18: =TEXT(a0/b0,"0.00") -> 0.67
C19: so that | D19: =TEXT(a0/b0,"0.00") -> 0.67 | J19: The area from x = | L19: =a -> 0 | M19: to x = | N19: =x0 -> 2.445 | O19: = | P19: =LOOKUP(x0+dx/2,Sheet2!$C$3:$C$203,Sheet2!E$3:E$203) -> 0.565
P24: The area under the transformed graph
P25: from z = | Q25: =theta0 -> 0.000 | R25: to z = | S25: =th0 -> 2.754
A26: The transformed integrand is then | E26: 2z | Q26: is about | R26: =LOOKUP(th0+dtheta/2,Sheet2!F3:F203,Sheet2!H3:H203) -> 0.565
D27: =TEXT(a0-c0,"0")&" (z^2) + "&TEXT(2*b0,"0"&"z + "&TEXT(a0+c0,"0")) -> 1 (z^2) + 6z + 3
A30: What is the interval for x for display?
C31: xMin = | D31: 0
C32: xMax = | D32: 3
C34: This corresponds to: | I34: The area = | K34: =LOOKUP(x0+dx/2,Sheet2!$C$3:$C$203,Sheet2!F3:F203) -> 2.754
D35: z Min = | E35: =theta0 -> 0.000
D36: z Max = | E36: =TAN(b/2) -> 14.101
A39: Click each item below for suggestions and investigations
C40: Item 1
C41: Item 2
C42: Item 3
C43: Item 4
A47: To access/download all the DIGMath Apps for Calculus
A48: Click this link: | C48: DIGMath for Calculus
A50: Created by: Sheldon P. Gordon
A51: Farmingdale State College
A52: Development of this module was supported by the
A53: NSF's Division of Undergraduate Education
A54: under grants DUE-0310123 and DUE-0442160.

Sheet Sheet2
G1: z-Substitution
C2: x | D2: f(x) | E2: Area | F2: z | G2: f(z ) | H2: Area | J2: xx | K2: f(xx) | L2: sweep x | M2: sweep y | N2: z | O2: f(z )
C3: =a -> 0 | D3: =1/(a0+b0*SIN(x)+c0*COS(x)) -> 0.3333333333 | E3: 0 | F3: =theta0 -> 0 | G3: =2/((a0-c0)*z^2+2*b0*z+(a0+c0)) -> 0.6666666667 | H3: 0 | J3: =C3 -> 0 | K3: 0 | L3: =J3 -> 0 | M3: =K3 -> 0 | N3: =theta0 -> 0 | O3: 0
C4: =C3+dx -> 0.015 | D4: 0.3284195405 | E4: =E3+(D3+D4)*dx/2 -> 0.004963146553 | F4: =TAN(x/2) -> 0.007500140628 | G4: 0.6568021344 | H4: =H3+(G3+G4)*(F4-F3)/2 -> 0.004963101063 | J4: =J3 -> 0 | K4: =1/(a0+b0*SIN(xx)+c0*COS(xx)) -> 0.3333333333 | L4: =L3 -> 0 | M4: =K4 -> 0.3333333333 | N4: =N3 -> 0 | O4: =G3 -> 0.6666666667
C5: 0.03 | D5: 0.3236731428 | E5: 0.009853841678 | F5: 0.0150011251 | G5: 0.6472006437 | H5: =H4+(G4+G5)*(F5-F4)/2 -> 0.009853753358 | J5: =J3+dx -> 0.015 | K5: 0 | L5: =IF(xx<=x0,L3+dx,L3) -> 0.015 | M5: =K5 -> 0 | N5: =IF(xx<=x0,TAN(xx/2),N3) -> 0.007500140628 | O5: 0
C6: 0.045 | D6: 0.3190869403 | E6: 0.0146745423 | F6: 0.02250379764 | G6: 0.6378508597 | H6: 0.01467441367 | J6: =J5 -> 0.015 | K6: =1/(a0+b0*SIN(xx)+c0*COS(xx)) -> 0.3284195405 | L6: =L5 -> 0.015 | M6: =IF(xx<=x0,1/(a0+b0*SIN(xx)+c0*COS(xx)),M4) -> 0.3284195405 | N6: =N5 -> 0.007500140628 | O6: =IF(xx<=x0,2/((a0-c0)*zz^2+2*b0*zz+(a0+c0)),O4) -> 0.6568021344
C7: 0.06 | D7: 0.3146541459 | E7: 0.01942760045 | F7: 0.03000900324 | G7: 0.6287420843 | H7: 0.0194274339 | J7: =J5+dx -> 0.03 | K7: 0 | L7: =IF(xx<=x0,L5+dx,L5) -> 0.03 | M7: =K7 -> 0 | N7: =IF(xx<=x0,TAN(xx/2),N5) -> 0.0150011251 | O7: 0
A8: =a -> 0 | C8: 0.075 | D8: 0.3103683572 | E8: 0.02411526922 | F8: 0.03751758802 | G8: 0.6198642124 | H8: 0.02411506702 | J8: =J7 -> 0.03 | K8: =1/(a0+b0*SIN(xx)+c0*COS(xx)) -> 0.3236731428 | L8: =L7 -> 0.03 | M8: =IF(xx<=x0,1/(a0+b0*SIN(xx)+c0*COS(xx)),M6) -> 0.3236731428 | N8: =N7 -> 0.0150011251 | O8: =IF(xx<=x0,2/((a0-c0)*zz^2+2*b0*zz+(a0+c0)),O6) -> 0.6472006437
A9: =b -> 3 | C9: 0.09 | D9: 0.3062235296 | E9: 0.02873970837 | F9: 0.04503039962 | G9: 0.6112076907 | H9: 0.02873947266 | J9: =J7+dx -> 0.045 | K9: 0 | L9: =IF(xx<=x0,L7+dx,L7) -> 0.045 | M9: =K9 -> 0 | N9: =IF(xx<=x0,TAN(xx/2),N7) -> 0.02250379764 | O9: 0
C10: 0.105 | D10: 0.3022139527 | E10: 0.03330298949 | F10: 0.05254828761 | G10: 0.602763481 | H10: 0.0333027223 | J10: =J9 -> 0.045 | K10: =1/(a0+b0*SIN(xx)+c0*COS(xx)) -> 0.3190869403 | L10: =L9 -> 0.045 | M10: =IF(xx<=x0,1/(a0+b0*SIN(xx)+c0*COS(xx)),M8) -> 0.3190869403 | N10: =N9 -> 0.02250379764 | O10: =IF(xx<=x0,2/((a0-c0)*zz^2+2*b0*zz+(a0+c0)),O8) -> 0.6378508597
A11: dx = | C11: 0.12 | D11: 0.2983342278 | E11: 0.03780710084 | F11: 0.06007210383 | G11: 0.5945230255 | H11: 0.03780680412 | J11: =J9+dx -> 0.06 | K11: 0 | L11: =IF(xx<=x0,L9+dx,L9) -> 0.06 | M11: =K11 -> 0 | N11: =IF(xx<=x0,TAN(xx/2),N9) -> 0.03000900324 | O11: 0
A12: =(b-a)/200 -> 0.015 | C12: 0.135 | D12: 0.2945792472 | E12: 0.04225395191 | F12: 0.0676027028 | G12: 0.5864782153 | H12: 0.04225362749 | J12: =J11 -> 0.06 | K12: =1/(a0+b0*SIN(xx)+c0*COS(xx)) -> 0.3146541459 | L12: =L11 -> 0.06 | M12: =IF(xx<=x0,1/(a0+b0*SIN(xx)+c0*COS(xx)),M10) -> 0.3146541459 | N12: =N11 -> 0.03000900324 | O12: =IF(xx<=x0,2/((a0-c0)*zz^2+2*b0*zz+(a0+c0)),O10) -> 0.6287420843
C13: 0.15 | D13: 0.2909441756 | E13: 0.04664537758 | F13: 0.07514094213 | G13: 0.5786213617 | H13: 0.04664502721 | J13: =J11+dx -> 0.075 | K13: 0 | L13: =IF(xx<=x0,L11+dx,L11) -> 0.075 | M13: =K13 -> 0 | N13: =IF(xx<=x0,TAN(xx/2),N11) -> 0.03751758802 | O13: 0
C14: 0.165 | D14: 0.2874244325 | E14: 0.05098314214 | F14: 0.08268768286 | G14: 0.5709451685 | H14: 0.05098276749 | J14: =J13 -> 0.075 | K14: =1/(a0+b0*SIN(xx)+c0*COS(xx)) -> 0.3103683572 | L14: =L13 -> 0.075 | M14: =IF(xx<=x0,1/(a0+b0*SIN(xx)+c0*COS(xx)),M12) -> 0.3103683572 | N14: =N13 -> 0.03751758802 | O14: =IF(xx<=x0,2/((a0-c0)*zz^2+2*b0*zz+(a0+c0)),O12) -> 0.6198642124
A15: First graph | C15: 0.18 | D15: 0.2840156762 | E15: 0.05526894295 | F15: 0.09024378991 | G15: 0.5634427078 | H15: 0.0552685456 | J15: =J13+dx -> 0.09 | K15: 0 | L15: =IF(xx<=x0,L13+dx,L13) -> 0.09 | M15: =K15 -> 0 | N15: =IF(xx<=x0,TAN(xx/2),N13) -> 0.04503039962 | O15: 0
A16: =x0 -> 2.445 | B16: 0 | C16: 0.195 | D16: 0.2807137887 | E16: 0.05950441394 | F16: 0.09781013246 | G16: 0.5561073969 | H16: 0.0595039954 | J16: =J15 -> 0.09 | K16: =1/(a0+b0*SIN(xx)+c0*COS(xx)) -> 0.3062235296 | L16: =L15 -> 0.09 | M16: =IF(xx<=x0,1/(a0+b0*SIN(xx)+c0*COS(xx)),M14) -> 0.3062235296 | N16: =N15 -> 0.04503039962 | O16: =IF(xx<=x0,2/((a0-c0)*zz^2+2*b0*zz+(a0+c0)),O14) -> 0.6112076907
A17: =x0 -> 2.445 | B17: =LOOKUP(x0+dx/2,C3:C203,D3:D203) -> 0.3166770901 | C17: 0.21 | D17: 0.2775148622 | E17: 0.06369112882 | F17: 0.1053875843 | G17: 0.5489329767 | H17: 0.06369069053 | J17: =J15+dx -> 0.105 | K17: 0 | L17: =IF(xx<=x0,L15+dx,L15) -> 0.105 | M17: =K17 -> 0 | N17: =IF(xx<=x0,TAN(xx/2),N15) -> 0.05254828761 | O17: 0
C18: 0.225 | D18: 0.2744151861 | E18: 0.06783060418 | F18: 0.1129770245 | G18: 0.5419134923 | H18: 0.0678301475 | J18: =J17 -> 0.105 | K18: =1/(a0+b0*SIN(xx)+c0*COS(xx)) -> 0.3022139527 | L18: =L17 -> 0.105 | M18: =IF(xx<=x0,1/(a0+b0*SIN(xx)+c0*COS(xx)),M16) -> 0.3022139527 | N18: =N17 -> 0.05254828761 | O18: =IF(xx<=x0,2/((a0-c0)*zz^2+2*b0*zz+(a0+c0)),O16) -> 0.602763481
A19: Second graph | C19: 0.24 | D19: 0.2714112351 | E19: 0.07192430234 | F19: 0.1205793372 | G19: 0.5350432746 | H19: 0.07192382859 | J19: =J17+dx -> 0.12 | K19: 0 | L19: =IF(xx<=x0,L17+dx,L17) -> 0.12 | M19: =K19 -> 0 | N19: =IF(xx<=x0,TAN(xx/2),N17) -> 0.06007210383 | O19: 0
A20: =x0 -> 2.445 | B20: 0 | C20: 0.255 | D20: 0.2684996586 | E20: 0.07597363404 | F20: 0.1281954129 | G20: 0.5283169231 | H20: 0.07597314446 | J20: =J19 -> 0.12 | K20: =1/(a0+b0*SIN(xx)+c0*COS(xx)) -> 0.2983342278 | L20: =L19 -> 0.12 | M20: =IF(xx<=x0,1/(a0+b0*SIN(xx)+c0*COS(xx)),M18) -> 0.2983342278 | N20: =N19 -> 0.06007210383 | O20: =IF(xx<=x0,2/((a0-c0)*zz^2+2*b0*zz+(a0+c0)),O18) -> 0.5945230255
A21: =x0 -> 2.445 | B21: =LOOKUP(x0+dx/2,C$3:C$203,E$3:E$203) -> 0.5646897585 | C21: 0.27 | D21: 0.2656772699 | E21: 0.07997996101 | F21: 0.1358261481 | G21: 0.5217292904 | H21: 0.07997945679 | J21: =J19+dx -> 0.135 | K21: 0 | L21: =IF(xx<=x0,L19+dx,L19) -> 0.135 | M21: =K21 -> 0 | N21: =IF(xx<=x0,TAN(xx/2),N19) -> 0.0676027028 | O21: 0
C22: 0.285 | D22: 0.2629410371 | E22: 0.08394459831 | F22: 0.1434724463 | G22: 0.5152754674 | H22: 0.08394408059 | J22: =J21 -> 0.135 | K22: =1/(a0+b0*SIN(xx)+c0*COS(xx)) -> 0.2945792472 | L22: =L21 -> 0.135 | M22: =IF(xx<=x0,1/(a0+b0*SIN(xx)+c0*COS(xx)),M20) -> 0.2945792472 | N22: =N21 -> 0.0676027028 | O22: =IF(xx<=x0,2/((a0-c0)*zz^2+2*b0*zz+(a0+c0)),O20) -> 0.5864782153
A23: Third graph | C23: 0.3 | D23: 0.2602880743 | E23: 0.08786881664 | F23: 0.1511352181 | G23: 0.5089507693 | H23: 0.08786828651 | J23: =J21+dx -> 0.15 | K23: 0 | L23: =IF(xx<=x0,L21+dx,L21) -> 0.15 | M23: =K23 -> 0 | N23: =IF(xx<=x0,TAN(xx/2),N21) -> 0.07514094213 | O23: 0
A24: =th0 -> 2.754069733 | B24: 0 | C24: 0.315 | D24: 0.2577156328 | E24: 0.09175384445 | F24: 0.1588153815 | G24: 0.5027507233 | H24: 0.09175330294 | J24: =J23 -> 0.15 | K24: =1/(a0+b0*SIN(xx)+c0*COS(xx)) -> 0.2909441756 | L24: =L23 -> 0.15 | M24: =IF(xx<=x0,1/(a0+b0*SIN(xx)+c0*COS(xx)),M22) -> 0.2909441756 | N24: =N23 -> 0.07514094213 | O24: =IF(xx<=x0,2/((a0-c0)*zz^2+2*b0*zz+(a0+c0)),O22) -> 0.5786213617
A25: =A24 -> 2.754069733 | B25: =LOOKUP(x0+dx/2,C$3:C$203,G$3:G$203) -> 0.07377536993 | C25: 0.33 | D25: 0.2552210944 | E25: 0.0956008699 | F25: 0.1665138631 | G25: 0.4966710566 | H25: 0.09560031802 | J25: =J23+dx -> 0.165 | K25: 0 | L25: =IF(xx<=x0,L23+dx,L23) -> 0.165 | M25: =K25 -> 0 | N25: =IF(xx<=x0,TAN(xx/2),N23) -> 0.08268768286 | O25: 0
C26: 0.345 | D26: 0.2528019631 | E26: 0.09941104283 | F26: 0.1742315976 | G26: 0.490707685 | H26: 0.09941048152 | J26: =J25 -> 0.165 | K26: =1/(a0+b0*SIN(xx)+c0*COS(xx)) -> 0.2874244325 | L26: =L25 -> 0.165 | M26: =IF(xx<=x0,1/(a0+b0*SIN(xx)+c0*COS(xx)),M24) -> 0.2874244325 | N26: =N25 -> 0.08268768286 | O26: =IF(xx<=x0,2/((a0-c0)*zz^2+2*b0*zz+(a0+c0)),O24) -> 0.5709451685
C27: 0.36 | D27: 0.2504558595 | E27: 0.1031854765 | F27: 0.181969529 | G27: 0.4848567029 | H27: 0.1031849067 | J27: =J25+dx -> 0.18 | K27: 0 | L27: =IF(xx<=x0,L25+dx,L25) -> 0.18 | M27: =K27 -> 0 | N27: =IF(xx<=x0,TAN(xx/2),N25) -> 0.09024378991 | O27: 0
C28: 0.375 | D28: 0.2481805136 | E28: 0.1069252493 | F28: 0.1897286107 | G28: 0.4791143732 | H28: 0.1069246718 | J28: =J27 -> 0.18 | K28: =1/(a0+b0*SIN(xx)+c0*COS(xx)) -> 0.2840156762 | L28: =L27 -> 0.18 | M28: =IF(xx<=x0,1/(a0+b0*SIN(xx)+c0*COS(xx)),M26) -> 0.2840156762 | N28: =N27 -> 0.09024378991 | O28: =IF(xx<=x0,2/((a0-c0)*zz^2+2*b0*zz+(a0+c0)),O26) -> 0.5634427078
C29: 0.39 | D29: 0.2459737597 | E29: 0.1106314064 | F29: 0.1975098061 | G29: 0.4734771186 | H29: 0.1106308221 | J29: =J27+dx -> 0.195 | K29: 0 | L29: =IF(xx<=x0,L27+dx,L27) -> 0.195 | M29: =K29 -> 0 | N29: =IF(xx<=x0,TAN(xx/2),N27) -> 0.09781013246 | O29: 0
C30: 0.405 | D30: 0.2438335306 | E30: 0.114304961 | F30: 0.205314089 | G30: 0.467941513 | H30: 0.1143043708 | J30: =J29 -> 0.195 | K30: =1/(a0+b0*SIN(xx)+c0*COS(xx)) -> 0.2807137887 | L30: =L29 -> 0.195 | M30: =IF(xx<=x0,1/(a0+b0*SIN(xx)+c0*COS(xx)),M28) -> 0.2807137887 | N30: =N29 -> 0.09781013246 | O30: =IF(xx<=x0,2/((a0-c0)*zz^2+2*b0*zz+(a0+c0)),O28) -> 0.5561073969
C31: 0.42 | D31: 0.2417578523 | E31: 0.1179468964 | F31: 0.2131424444 | G31: 0.4625042735 | H31: 0.1179463009 | J31: =J29+dx -> 0.21 | K31: 0 | L31: =IF(xx<=x0,L29+dx,L29) -> 0.21 | M31: =K31 -> 0 | N31: =IF(xx<=x0,TAN(xx/2),N29) -> 0.1053875843 | O31: 0
C32: 0.435 | D32: 0.2397448398 | E32: 0.1215581666 | F32: 0.2209958686 | G32: 0.4571622528 | H32: 0.1215575666 | J32: =J31 -> 0.21 | K32: =1/(a0+b0*SIN(xx)+c0*COS(xx)) -> 0.2775148622 | L32: =L31 -> 0.21 | M32: =IF(xx<=x0,1/(a0+b0*SIN(xx)+c0*COS(xx)),M30) -> 0.2775148622 | N32: =N31 -> 0.1053875843 | O32: =IF(xx<=x0,2/((a0-c0)*zz^2+2*b0*zz+(a0+c0)),O30) -> 0.5489329767
C33: 0.45 | D33: 0.2377926919 | E33: 0.1251396981 | F33: 0.2288753702 | G33: 0.4519124323 | H33: 0.1251390943 | J33: =J31+dx -> 0.225 | K33: 0 | L33: =IF(xx<=x0,L31+dx,L31) -> 0.225 | M33: =K33 -> 0 | N33: =IF(xx<=x0,TAN(xx/2),N31) -> 0.1129770245 | O33: 0
C34: 0.465 | D34: 0.2358996877 | E34: 0.1286923909 | F34: 0.2367819702 | G34: 0.4467519159 | H34: 0.1286917841 | J34: =J33 -> 0.225 | K34: =1/(a0+b0*SIN(xx)+c0*COS(xx)) -> 0.2744151861 | L34: =L33 -> 0.225 | M34: =IF(xx<=x0,1/(a0+b0*SIN(xx)+c0*COS(xx)),M32) -> 0.2744151861 | N34: =N33 -> 0.1129770245 | O34: =IF(xx<=x0,2/((a0-c0)*zz^2+2*b0*zz+(a0+c0)),O32) -> 0.5419134923
A35: x-axis | C35: 0.48 | D35: 0.234064182 | E35: 0.1322171199 | F35: 0.2447167027 | G35: 0.441677923 | H35: 0.1322165106 | J35: =J33+dx -> 0.24 | K35: 0 | L35: =IF(xx<=x0,L33+dx,L33) -> 0.24 | M35: =K35 -> 0 | N35: =IF(xx<=x0,TAN(xx/2),N33) -> 0.1205793372 | O35: 0
A36: =a -> 0 | B36: 0 | C36: =C35+dx -> 0.495 | D36: 0.2322846021 | E36: =E35+(D35+D36)*dx/2 -> 0.1357147358 | F36: =TAN(x/2) -> 0.2526806158 | G36: 0.4366877837 | H36: 0.1357141247 | J36: =J35 -> 0.24 | K36: =1/(a0+b0*SIN(xx)+c0*COS(xx)) -> 0.2714112351 | L36: =L35 -> 0.24 | M36: =IF(xx<=x0,1/(a0+b0*SIN(xx)+c0*COS(xx)),M34) -> 0.2714112351 | N36: =N35 -> 0.1205793372 | O36: =IF(xx<=x0,2/((a0-c0)*zz^2+2*b0*zz+(a0+c0)),O34) -> 0.5350432746
A37: =b -> 3 | B37: 0 | C37: 0.51 | D37: 0.2305594439 | E37: 0.1391860662 | F37: 0.2606747716 | G37: 0.4317789323 | H37: 0.1391854538 | J37: =J35+dx -> 0.255 | K37: 0 | L37: =IF(xx<=x0,L35+dx,L35) -> 0.255 | M37: =K37 -> 0 | N37: =IF(xx<=x0,TAN(xx/2),N35) -> 0.1281954129 | O37: 0
C38: 0.525 | D38: 0.2288872692 | E38: 0.1426319165 | F38: 0.2687002474 | G38: 0.4269489031 | H38: 0.1426313036 | J38: =J37 -> 0.255 | K38: =1/(a0+b0*SIN(xx)+c0*COS(xx)) -> 0.2684996586 | L38: =L37 -> 0.255 | M38: =IF(xx<=x0,1/(a0+b0*SIN(xx)+c0*COS(xx)),M36) -> 0.2684996586 | N38: =N37 -> 0.1281954129 | O38: =IF(xx<=x0,2/((a0-c0)*zz^2+2*b0*zz+(a0+c0)),O36) -> 0.5283169231
A39: z-axis | C39: 0.54 | D39: 0.2272667018 | E39: 0.1460530713 | F39: 0.2767581359 | G39: 0.4221953249 | H39: 0.1460524583 | J39: =J37+dx -> 0.27 | K39: 0 | L39: =IF(xx<=x0,L37+dx,L37) -> 0.27 | M39: =K39 -> 0 | N39: =IF(xx<=x0,TAN(xx/2),N37) -> 0.1358261481 | O39: 0
A40: =theta0 -> 0 | B40: 0 | C40: 0.555 | D40: 0.2256964254 | E40: 0.1494502948 | F40: 0.2848495458 | G40: 0.4175159168 | H40: 0.1494496822 | J40: =J39 -> 0.27 | K40: =1/(a0+b0*SIN(xx)+c0*COS(xx)) -> 0.2656772699 | L40: =L39 -> 0.27 | M40: =IF(xx<=x0,1/(a0+b0*SIN(xx)+c0*COS(xx)),M38) -> 0.2656772699 | N40: =N39 -> 0.1358261481 | O40: =IF(xx<=x0,2/((a0-c0)*zz^2+2*b0*zz+(a0+c0)),O38) -> 0.5217292904
A41: =theta00 -> 14.10141995 | B41: 0 | C41: 0.57 | D41: 0.2241751805 | E41: 0.1528243318 | F41: 0.2929756029 | G41: 0.4129084836 | H41: 0.1528237203 | J41: =J39+dx -> 0.285 | K41: 0 | L41: =IF(xx<=x0,L39+dx,L39) -> 0.285 | M41: =K41 -> 0 | N41: =IF(xx<=x0,TAN(xx/2),N39) -> 0.1434724463 | O41: 0
C42: 0.585 | D42: 0.2227017618 | E42: 0.1561759089 | F42: 0.3011374504 | G42: 0.4083709122 | H42: 0.1561752989 | J42: =J41 -> 0.285 | K42: =1/(a0+b0*SIN(xx)+c0*COS(xx)) -> 0.2629410371 | L42: =L41 -> 0.285 | M42: =IF(xx<=x0,1/(a0+b0*SIN(xx)+c0*COS(xx)),M40) -> 0.2629410371 | N42: =N41 -> 0.1434724463 | O42: =IF(xx<=x0,2/((a0-c0)*zz^2+2*b0*zz+(a0+c0)),O40) -> 0.5152754674
C43: 0.6 | D43: 0.2212750159 | E43: 0.1595057347 | F43: 0.3093362496 | G43: 0.4039011672 | H43: 0.1595051267 | J43: =J41+dx -> 0.3 | K43: 0 | L43: =IF(xx<=x0,L41+dx,L41) -> 0.3 | M43: =K43 -> 0 | N43: =IF(xx<=x0,TAN(xx/2),N41) -> 0.1511352181 | O43: 0
C44: 0.615 | D44: 0.219893839 | E44: 0.1628145011 | F44: 0.3175731808 | G44: 0.3994972878 | H44: 0.1628138956 | J44: =J43 -> 0.3 | K44: =1/(a0+b0*SIN(xx)+c0*COS(xx)) -> 0.2602880743 | L44: =L43 -> 0.3 | M44: =IF(xx<=x0,1/(a0+b0*SIN(xx)+c0*COS(xx)),M42) -> 0.2602880743 | N44: =N43 -> 0.1511352181 | O44: =IF(xx<=x0,2/((a0-c0)*zz^2+2*b0*zz+(a0+c0)),O42) -> 0.5089507693
A45: z0 = | B45: =TAN(a/2) -> 0 | C45: 0.63 | D45: 0.2185571747 | E45: 0.1661028837 | F45: 0.3258494438 | G45: 0.395157384 | H45: 0.1661022811 | J45: =J43+dx -> 0.315 | K45: 0 | L45: =IF(xx<=x0,L43+dx,L43) -> 0.315 | M45: =K45 -> 0 | N45: =IF(xx<=x0,TAN(xx/2),N43) -> 0.1588153815 | O45: 0
A46: z00 = | B46: =TAN(b/2) -> 14.10141995 | C46: 0.645 | D46: 0.2172640121 | E46: 0.1693715426 | F46: 0.3341662589 | G46: 0.3908796335 | H46: 0.1693709434 | J46: =J45 -> 0.315 | K46: =1/(a0+b0*SIN(xx)+c0*COS(xx)) -> 0.2577156328 | L46: =L45 -> 0.315 | M46: =IF(xx<=x0,1/(a0+b0*SIN(xx)+c0*COS(xx)),M44) -> 0.2577156328 | N46: =N45 -> 0.1588153815 | O46: =IF(xx<=x0,2/((a0-c0)*zz^2+2*b0*zz+(a0+c0)),O44) -> 0.5027507233
A47: dz = | B47: =(theta00-theta0)/200 -> 0.07050709974 | C47: 0.66 | D47: 0.2160133837 | E47: 0.1726211231 | F47: 0.3425248675 | G47: 0.3866622788 | H47: 0.1726205277 | J47: =J45+dx -> 0.33 | K47: 0 | L47: =IF(xx<=x0,L45+dx,L45) -> 0.33 | M47: =K47 -> 0 | N47: =IF(xx<=x0,TAN(xx/2),N45) -> 0.1665138631 | O47: 0
C48: 0.675 | D48: 0.214804364 | E48: 0.1758522562 | F48: 0.350926533 | G48: 0.382503624 | H48: 0.175851665 | J48: =J47 -> 0.33 | K48: =1/(a0+b0*SIN(xx)+c0*COS(xx)) -> 0.2552210944 | L48: =L47 -> 0.33 | M48: =IF(xx<=x0,1/(a0+b0*SIN(xx)+c0*COS(xx)),M46) -> 0.2552210944 | N48: =N47 -> 0.1665138631 | O48: =IF(xx<=x0,2/((a0-c0)*zz^2+2*b0*zz+(a0+c0)),O46) -> 0.4966710566
C49: 0.69 | D49: 0.2136360671 | E49: 0.1790655594 | F49: 0.3593725416 | G49: 0.3784020325 | H49: 0.1790649728 | J49: =J47+dx -> 0.345 | K49: 0 | L49: =IF(xx<=x0,L47+dx,L47) -> 0.345 | M49: =K49 -> 0 | N49: =IF(xx<=x0,TAN(xx/2),N47) -> 0.1742315976 | O49: 0
C50: 0.705 | D50: 0.2125076458 | E50: 0.1822616373 | F50: 0.367864203 | G50: 0.3743559237 | H50: 0.1822610557 | J50: =J49 -> 0.345 | K50: =1/(a0+b0*SIN(xx)+c0*COS(xx)) -> 0.2528019631 | L50: =L49 -> 0.345 | M50: =IF(xx<=x0,1/(a0+b0*SIN(xx)+c0*COS(xx)),M48) -> 0.2528019631 | N50: =N49 -> 0.1742315976 | O50: =IF(xx<=x0,2/((a0-c0)*zz^2+2*b0*zz+(a0+c0)),O48) -> 0.490707685
C51: 0.72 | D51: 0.2114182898 | E51: 0.1854410818 | F51: 0.3764028516 | G51: 0.3703637713 | H51: 0.1854405056 | J51: =J49+dx -> 0.36 | K51: 0 | L51: =IF(xx<=x0,L49+dx,L49) -> 0.36 | M51: =K51 -> 0 | N51: =IF(xx<=x0,TAN(xx/2),N49) -> 0.181969529 | O51: 0
C52: 0.735 | D52: 0.2103672241 | E52: 0.1886044731 | F52: 0.3849898472 | G52: 0.3664241005 | H52: 0.1886039027 | J52: =J51 -> 0.36 | K52: =1/(a0+b0*SIN(xx)+c0*COS(xx)) -> 0.2504558595 | L52: =L51 -> 0.36 | M52: =IF(xx<=x0,1/(a0+b0*SIN(xx)+c0*COS(xx)),M50) -> 0.2504558595 | N52: =N51 -> 0.181969529 | O52: =IF(xx<=x0,2/((a0-c0)*zz^2+2*b0*zz+(a0+c0)),O50) -> 0.4848567029
C53: 0.75 | D53: 0.2093537081 | E53: 0.1917523801 | F53: 0.3936265759 | G53: 0.362535486 | H53: 0.1917518158 | J53: =J51+dx -> 0.375 | K53: 0 | L53: =IF(xx<=x0,L51+dx,L51) -> 0.375 | M53: =K53 -> 0 | N53: =IF(xx<=x0,TAN(xx/2),N51) -> 0.1897286107 | O53: 0
C54: 0.765 | D54: 0.2083770338 | E54: 0.1948853607 | F54: 0.4023144513 | G54: 0.3586965496 | H54: 0.1948848028 | J54: =J53 -> 0.375 | K54: =1/(a0+b0*SIN(xx)+c0*COS(xx)) -> 0.2481805136 | L54: =L53 -> 0.375 | M54: =IF(xx<=x0,1/(a0+b0*SIN(xx)+c0*COS(xx)),M52) -> 0.2481805136 | N54: =N53 -> 0.1897286107 | O54: =IF(xx<=x0,2/((a0-c0)*zz^2+2*b0*zz+(a0+c0)),O52) -> 0.4791143732
C55: 0.78 | D55: 0.2074365249 | E55: 0.1980039624 | F55: 0.4110549152 | G55: 0.3549059588 | H55: 0.1980034113 | J55: =J53+dx -> 0.39 | K55: 0 | L55: =IF(xx<=x0,L53+dx,L53) -> 0.39 | M55: =K55 -> 0 | N55: =IF(xx<=x0,TAN(xx/2),N53) -> 0.1975098061 | O55: 0
C56: 0.795 | D56: 0.2065315358 | E56: 0.2011087228 | F56: 0.4198494389 | G56: 0.3511624241 | H56: 0.2011081788 | J56: =J55 -> 0.39 | K56: =1/(a0+b0*SIN(xx)+c0*COS(xx)) -> 0.2459737597 | L56: =L55 -> 0.39 | M56: =IF(xx<=x0,1/(a0+b0*SIN(xx)+c0*COS(xx)),M54) -> 0.2459737597 | N56: =N55 -> 0.1975098061 | O56: =IF(xx<=x0,2/((a0-c0)*zz^2+2*b0*zz+(a0+c0)),O54) -> 0.4734771186
C57: 0.81 | D57: 0.2056614502 | E57: 0.2042001702 | F57: 0.4286995242 | G57: 0.3474646978 | H57: 0.2041996337 | J57: =J55+dx -> 0.405 | K57: 0 | L57: =IF(xx<=x0,L55+dx,L55) -> 0.405 | M57: =K57 -> 0 | N57: =IF(xx<=x0,TAN(xx/2),N55) -> 0.205314089 | O57: 0
C58: 0.825 | D58: 0.2048256802 | E58: 0.2072788237 | F58: 0.4376067046 | G58: 0.3438115723 | H58: 0.2072782949 | J58: =J57 -> 0.405 | K58: =1/(a0+b0*SIN(xx)+c0*COS(xx)) -> 0.2438335306 | L58: =L57 -> 0.405 | M58: =IF(xx<=x0,1/(a0+b0*SIN(xx)+c0*COS(xx)),M56) -> 0.2438335306 | N58: =N57 -> 0.205314089 | O58: =IF(xx<=x0,2/((a0-c0)*zz^2+2*b0*zz+(a0+c0)),O56) -> 0.467941513
C59: 0.84 | D59: 0.2040236655 | E59: 0.2103451938 | F59: 0.4465725463 | G59: 0.3402018779 | H59: 0.210344673 | J59: =J57+dx -> 0.42 | K59: 0 | L59: =IF(xx<=x0,L57+dx,L57) -> 0.42 | M59: =K59 -> 0 | N59: =IF(xx<=x0,TAN(xx/2),N57) -> 0.2131424444 | O59: 0
C60: 0.855 | D60: 0.2032548724 | E60: 0.2133997828 | F60: 0.4555986494 | G60: 0.3366344818 | H60: 0.2133992704 | J60: =J59 -> 0.42 | K60: =1/(a0+b0*SIN(xx)+c0*COS(xx)) -> 0.2417578523 | L60: =L59 -> 0.42 | M60: =IF(xx<=x0,1/(a0+b0*SIN(xx)+c0*COS(xx)),M58) -> 0.2417578523 | N60: =N59 -> 0.2131424444 | O60: =IF(xx<=x0,2/((a0-c0)*zz^2+2*b0*zz+(a0+c0)),O58) -> 0.4625042735
C61: 0.87 | D61: 0.2025187927 | E61: 0.2164430853 | F61: 0.4646866494 | G61: 0.3331082866 | H61: 0.2164425815 | J61: =J59+dx -> 0.435 | K61: 0 | L61: =IF(xx<=x0,L59+dx,L59) -> 0.435 | M61: =K61 -> 0 | N61: =IF(xx<=x0,TAN(xx/2),N59) -> 0.2209958686 | O61: 0
C62: 0.885 | D62: 0.2018149435 | E62: 0.2194755884 | F62: 0.4738382182 | G62: 0.3296222284 | H62: 0.2194750935 | J62: =J61 -> 0.435 | K62: =1/(a0+b0*SIN(xx)+c0*COS(xx)) -> 0.2397448398 | L62: =L61 -> 0.435 | M62: =IF(xx<=x0,1/(a0+b0*SIN(xx)+c0*COS(xx)),M60) -> 0.2397448398 | N62: =N61 -> 0.2209958686 | O62: =IF(xx<=x0,2/((a0-c0)*zz^2+2*b0*zz+(a0+c0)),O60) -> 0.4571622528
C63: 0.9 | D63: 0.2011428657 | E63: 0.2224977719 | F63: 0.4830550656 | G63: 0.3261752761 | H63: 0.2224972863 | J63: =J61+dx -> 0.45 | K63: 0 | L63: =IF(xx<=x0,L61+dx,L61) -> 0.45 | M63: =K63 -> 0 | N63: =IF(xx<=x0,TAN(xx/2),N61) -> 0.2288753702 | O63: 0
C64: 0.915 | D64: 0.200502124 | E64: 0.2255101094 | F64: 0.4923389408 | G64: 0.3227664296 | H64: 0.2255096332 | J64: =J63 -> 0.45 | K64: =1/(a0+b0*SIN(xx)+c0*COS(xx)) -> 0.2377926919 | L64: =L63 -> 0.45 | M64: =IF(xx<=x0,1/(a0+b0*SIN(xx)+c0*COS(xx)),M62) -> 0.2377926919 | N64: =N63 -> 0.2288753702 | O64: =IF(xx<=x0,2/((a0-c0)*zz^2+2*b0*zz+(a0+c0)),O62) -> 0.4519124323
C65: 0.93 | D65: 0.1998923058 | E65: 0.2285130676 | F65: 0.5016916337 | G65: 0.319394719 | H65: 0.2285126012 | J65: =J63+dx -> 0.465 | K65: 0 | L65: =IF(xx<=x0,L63+dx,L63) -> 0.465 | M65: =K65 -> 0 | N65: =IF(xx<=x0,TAN(xx/2),N63) -> 0.2367819702 | O65: 0
C66: 0.945 | D66: 0.1993130206 | E66: 0.2315071075 | F66: 0.5111149761 | G66: 0.3160592031 | H66: 0.2315066511 | J66: =J65 -> 0.465 | K66: =1/(a0+b0*SIN(xx)+c0*COS(xx)) -> 0.2358996877 | L66: =L65 -> 0.465 | M66: =IF(xx<=x0,1/(a0+b0*SIN(xx)+c0*COS(xx)),M64) -> 0.2358996877 | N66: =N65 -> 0.2367819702 | O66: =IF(xx<=x0,2/((a0-c0)*zz^2+2*b0*zz+(a0+c0)),O64) -> 0.4467519159
C67: 0.96 | D67: =1/(a0+b0*SIN(x)+c0*COS(x)) -> 0.1987638996 | E67: 0.2344926844 | F67: 0.5206108442 | G67: =2/((a0-c0)*z^2+2*b0*z+(a0+c0)) -> 0.3127589685 | H67: 0.2344922383 | J67: =J65+dx -> 0.48 | K67: 0 | L67: =IF(xx<=x0,L65+dx,L65) -> 0.48 | M67: =K67 -> 0 | N67: =IF(xx<=x0,TAN(xx/2),N65) -> 0.2447167027 | O67: 0
C68: =C67+dx -> 0.975 | D68: 0.1982445949 | E68: =E67+(D67+D68)*dx/2 -> 0.2374702481 | F68: =TAN(x/2) -> 0.5301811591 | G68: 0.3094931284 | H68: 0.2374698126 | J68: =J67 -> 0.48 | K68: =1/(a0+b0*SIN(xx)+c0*COS(xx)) -> 0.234064182 | L68: =L67 -> 0.48 | M68: =IF(xx<=x0,1/(a0+b0*SIN(xx)+c0*COS(xx)),M66) -> 0.234064182 | N68: =N67 -> 0.2447167027 | O68: =IF(xx<=x0,2/((a0-c0)*zz^2+2*b0*zz+(a0+c0)),O66) -> 0.441677923
C69: 0.99 | D69: 0.1977547794 | E69: 0.2404402434 | F69: 0.5398278893 | G69: 0.3062608217 | H69: =H68+(G68+G69)*(F69-F68)/2 -> 0.2404398187 | J69: =J67+dx -> 0.495 | K69: 0 | L69: =IF(xx<=x0,L67+dx,L67) -> 0.495 | M69: =K69 -> 0 | N69: =IF(xx<=x0,TAN(xx/2),N67) -> 0.2526806158 | O69: 0
C70: 1.005 | D70: 0.1972941457 | E70: 0.2434031104 | F70: 0.5495530521 | G70: 0.3030612121 | H70: 0.2434026967 | J70: =J69 -> 0.495 | K70: =1/(a0+b0*SIN(xx)+c0*COS(xx)) -> 0.2322846021 | L70: =L69 -> 0.495 | M70: =IF(xx<=x0,1/(a0+b0*SIN(xx)+c0*COS(xx)),M68) -> 0.2322846021 | N70: =N69 -> 0.2526806158 | O70: =IF(xx<=x0,2/((a0-c0)*zz^2+2*b0*zz+(a0+c0)),O68) -> 0.4366877837
C71: 1.02 | D71: 0.1968624063 | E71: 0.2463592845 | F71: 0.5593587156 | G71: 0.2998934868 | H71: 0.2463588821 | J71: =J69+dx -> 0.51 | K71: 0 | L71: =IF(xx<=x0,L69+dx,L69) -> 0.51 | M71: =K71 -> 0 | N71: =IF(xx<=x0,TAN(xx/2),N69) -> 0.2606747716 | O71: 0
C72: 1.035 | D72: 0.1964592927 | E72: 0.2493091973 | F72: 0.5692470006 | G72: 0.2967568563 | H72: 0.2493088064 | J72: =J71 -> 0.51 | K72: =1/(a0+b0*SIN(xx)+c0*COS(xx)) -> 0.2305594439 | L72: =L71 -> 0.51 | M72: =IF(xx<=x0,1/(a0+b0*SIN(xx)+c0*COS(xx)),M70) -> 0.2305594439 | N72: =N71 -> 0.2606747716 | O72: =IF(xx<=x0,2/((a0-c0)*zz^2+2*b0*zz+(a0+c0)),O70) -> 0.4317789323
C73: 1.05 | D73: 0.1960845552 | E73: 0.2522532761 | F73: 0.5792200823 | G73: 0.2936505528 | H73: 0.2522528971 | J73: =J71+dx -> 0.525 | K73: 0 | L73: =IF(xx<=x0,L71+dx,L71) -> 0.525 | M73: =K73 -> 0 | N73: =IF(xx<=x0,TAN(xx/2),N71) -> 0.2687002474 | O73: 0
C74: 1.065 | D74: 0.1957379626 | E74: 0.255191945 | F74: 0.5892801928 | G74: 0.2905738299 | H74: 0.255191578 | J74: =J73 -> 0.525 | K74: =1/(a0+b0*SIN(xx)+c0*COS(xx)) -> 0.2288872692 | L74: =L73 -> 0.525 | M74: =IF(xx<=x0,1/(a0+b0*SIN(xx)+c0*COS(xx)),M72) -> 0.2288872692 | N74: =N73 -> 0.2687002474 | O74: =IF(xx<=x0,2/((a0-c0)*zz^2+2*b0*zz+(a0+c0)),O72) -> 0.4269489031
C75: 1.08 | D75: 0.1954193018 | E75: 0.2581256245 | F75: 0.5994296232 | G75: 0.2875259617 | H75: 0.2581252698 | J75: =J73+dx -> 0.54 | K75: 0 | L75: =IF(xx<=x0,L73+dx,L73) -> 0.54 | M75: =K75 -> 0 | N75: =IF(xx<=x0,TAN(xx/2),N73) -> 0.2767581359 | O75: 0
C76: 1.095 | D76: 0.1951283775 | E76: 0.2610547321 | F76: 0.6096707254 | G76: 0.2845062419 | H76: 0.26105439 | J76: =J75 -> 0.54 | K76: =1/(a0+b0*SIN(xx)+c0*COS(xx)) -> 0.2272667018 | L76: =L75 -> 0.54 | M76: =IF(xx<=x0,1/(a0+b0*SIN(xx)+c0*COS(xx)),M74) -> 0.2272667018 | N76: =N75 -> 0.2767581359 | O76: =IF(xx<=x0,2/((a0-c0)*zz^2+2*b0*zz+(a0+c0)),O74) -> 0.4221953249
C77: 1.11 | D77: 0.1948650118 | E77: 0.2639796825 | F77: 0.6200059151 | G77: 0.2815139835 | H77: 0.2639793532 | J77: =J75+dx -> 0.555 | K77: 0 | L77: =IF(xx<=x0,L75+dx,L75) -> 0.555 | M77: =K77 -> 0 | N77: =IF(xx<=x0,TAN(xx/2),N75) -> 0.2848495458 | O77: 0
C78: 1.125 | D78: 0.1946290442 | E78: 0.2669008879 | F78: 0.6304376738 | G78: 0.2785485175 | H78: 0.2669005716 | J78: =J77 -> 0.555 | K78: =1/(a0+b0*SIN(xx)+c0*COS(xx)) -> 0.2256964254 | L78: =L77 -> 0.555 | M78: =IF(xx<=x0,1/(a0+b0*SIN(xx)+c0*COS(xx)),M76) -> 0.2256964254 | N78: =N77 -> 0.2848495458 | O78: =IF(xx<=x0,2/((a0-c0)*zz^2+2*b0*zz+(a0+c0)),O76) -> 0.4175159168
C79: 1.14 | D79: 0.1944203312 | E79: 0.2698187582 | F79: 0.6409685517 | G79: 0.275609193 | H79: 0.2698184552 | J79: =J77+dx -> 0.57 | K79: 0 | L79: =IF(xx<=x0,L77+dx,L77) -> 0.57 | M79: =K79 -> 0 | N79: =IF(xx<=x0,TAN(xx/2),N77) -> 0.2929756029 | O79: 0
C80: 1.155 | D80: 0.1942387462 | E80: 0.2727337013 | F80: 0.65160117 | G80: 0.2726953759 | H80: 0.2727334118 | J80: =J79 -> 0.57 | K80: =1/(a0+b0*SIN(xx)+c0*COS(xx)) -> 0.2241751805 | L80: =L79 -> 0.57 | M80: =IF(xx<=x0,1/(a0+b0*SIN(xx)+c0*COS(xx)),M78) -> 0.2241751805 | N80: =N79 -> 0.2929756029 | O80: =IF(xx<=x0,2/((a0-c0)*zz^2+2*b0*zz+(a0+c0)),O78) -> 0.4129084836
C81: 1.17 | D81: 0.1940841792 | E81: 0.2756461233 | F81: 0.662338224 | G81: 0.2698064487 | H81: 0.2756458475 | J81: =J79+dx -> 0.585 | K81: 0 | L81: =IF(xx<=x0,L79+dx,L79) -> 0.585 | M81: =K81 -> 0 | N81: =IF(xx<=x0,TAN(xx/2),N79) -> 0.3011374504 | O81: 0
C82: 1.185 | D82: 0.1939565368 | E82: 0.2785564286 | F82: 0.6731824861 | G82: 0.2669418098 | H82: 0.2785561669 | J82: =J81 -> 0.585 | K82: =1/(a0+b0*SIN(xx)+c0*COS(xx)) -> 0.2227017618 | L82: =L81 -> 0.585 | M82: =IF(xx<=x0,1/(a0+b0*SIN(xx)+c0*COS(xx)),M80) -> 0.2227017618 | N82: =N81 -> 0.3011374504 | O82: =IF(xx<=x0,2/((a0-c0)*zz^2+2*b0*zz+(a0+c0)),O80) -> 0.4083709122
C83: 1.2 | D83: 0.1938557418 | E83: 0.2814650207 | F83: 0.6841368083 | G83: 0.2641008731 | H83: 0.2814647732 | J83: =J81+dx -> 0.6 | K83: 0 | L83: =IF(xx<=x0,L81+dx,L81) -> 0.6 | M83: =K83 -> 0 | N83: =IF(xx<=x0,TAN(xx/2),N81) -> 0.3093362496 | O83: 0
C84: 1.215 | D84: 0.1937817335 | E84: 0.2843723018 | F84: 0.6952041263 | G84: 0.2612830672 | H84: 0.2843720688 | J84: =J83 -> 0.6 | K84: =1/(a0+b0*SIN(xx)+c0*COS(xx)) -> 0.2212750159 | L84: =L83 -> 0.6 | M84: =IF(xx<=x0,1/(a0+b0*SIN(xx)+c0*COS(xx)),M82) -> 0.2212750159 | N84: =N83 -> 0.3093362496 | O84: =IF(xx<=x0,2/((a0-c0)*zz^2+2*b0*zz+(a0+c0)),O82) -> 0.4039011672
C85: 1.23 | D85: 0.1937344672 | E85: 0.2872786733 | F85: 0.7063874621 | G85: 0.2584878352 | H85: 0.2872784551 | J85: =J83+dx -> 0.615 | K85: 0 | L85: =IF(xx<=x0,L83+dx,L83) -> 0.615 | M85: =K85 -> 0 | N85: =IF(xx<=x0,TAN(xx/2),N83) -> 0.3175731808 | O85: 0
C86: 1.245 | D86: 0.1937139145 | E86: 0.2901845361 | F86: 0.7176899278 | G86: 0.2557146339 | H86: 0.2901843329 | J86: =J85 -> 0.615 | K86: =1/(a0+b0*SIN(xx)+c0*COS(xx)) -> 0.219893839 | L86: =L85 -> 0.615 | M86: =IF(xx<=x0,1/(a0+b0*SIN(xx)+c0*COS(xx)),M84) -> 0.219893839 | N86: =N85 -> 0.3175731808 | O86: =IF(xx<=x0,2/((a0-c0)*zz^2+2*b0*zz+(a0+c0)),O84) -> 0.3994972878
C87: 1.26 | D87: 0.1937200631 | E87: 0.293090291 | F87: 0.7291147292 | G87: 0.2529629339 | H87: 0.293090103 | J87: =J85+dx -> 0.63 | K87: 0 | L87: =IF(xx<=x0,L85+dx,L85) -> 0.63 | M87: =K87 -> 0 | N87: =IF(xx<=x0,TAN(xx/2),N85) -> 0.3258494438 | O87: 0
C88: 1.275 | D88: 0.1937529165 | E88: 0.2959963383 | F88: 0.7406651699 | G88: 0.2502322182 | H88: 0.2959961659 | J88: =J87 -> 0.63 | K88: =1/(a0+b0*SIN(xx)+c0*COS(xx)) -> 0.2185571747 | L88: =L87 -> 0.63 | M88: =IF(xx<=x0,1/(a0+b0*SIN(xx)+c0*COS(xx)),M86) -> 0.2185571747 | N88: =N87 -> 0.3258494438 | O88: =IF(xx<=x0,2/((a0-c0)*zz^2+2*b0*zz+(a0+c0)),O86) -> 0.395157384
C89: 1.29 | D89: 0.1938124947 | E89: 0.2989030789 | F89: 0.7523446551 | G89: 0.2475219829 | H89: 0.2989029223 | J89: =J87+dx -> 0.645 | K89: 0 | L89: =IF(xx<=x0,L87+dx,L87) -> 0.645 | M89: =K89 -> 0 | N89: =IF(xx<=x0,TAN(xx/2),N87) -> 0.3341662589 | O89: 0
C90: 1.305 | D90: 0.1938988335 | E90: 0.3018109139 | F90: 0.7641566956 | G90: 0.2448317358 | H90: 0.3018107733 | J90: =J89 -> 0.645 | K90: =1/(a0+b0*SIN(xx)+c0*COS(xx)) -> 0.2172640121 | L90: =L89 -> 0.645 | M90: =IF(xx<=x0,1/(a0+b0*SIN(xx)+c0*COS(xx)),M88) -> 0.2172640121 | N90: =N89 -> 0.3341662589 | O90: =IF(xx<=x0,2/((a0-c0)*zz^2+2*b0*zz+(a0+c0)),O88) -> 0.3908796335
C91: 1.32 | D91: 0.1940119849 | E91: 0.304720245 | F91: 0.7761049128 | G91: 0.2421609969 | H91: 0.3047201208 | J91: =J89+dx -> 0.66 | K91: 0 | L91: =IF(xx<=x0,L89+dx,L89) -> 0.66 | M91: =K91 -> 0 | N91: =IF(xx<=x0,TAN(xx/2),N89) -> 0.3425248675 | O91: 0
C92: 1.335 | D92: 0.1941520173 | E92: 0.307631475 | F92: 0.7881930432 | G92: 0.2395092972 | H92: 0.3076313675 | J92: =J91 -> 0.66 | K92: =1/(a0+b0*SIN(xx)+c0*COS(xx)) -> 0.2160133837 | L92: =L91 -> 0.66 | M92: =IF(xx<=x0,1/(a0+b0*SIN(xx)+c0*COS(xx)),M90) -> 0.2160133837 | N92: =N91 -> 0.3425248675 | O92: =IF(xx<=x0,2/((a0-c0)*zz^2+2*b0*zz+(a0+c0)),O90) -> 0.3866622788
C93: 1.35 | D93: 0.1943190152 | E93: 0.3105450078 | F93: 0.8004249428 | G93: 0.2368761789 | H93: 0.3105449172 | J93: =J91+dx -> 0.675 | K93: 0 | L93: =IF(xx<=x0,L91+dx,L91) -> 0.675 | M93: =K93 -> 0 | N93: =IF(xx<=x0,TAN(xx/2),N91) -> 0.350926533 | O93: 0
C94: 1.365 | D94: 0.1945130797 | E94: 0.3134612485 | F94: 0.812804593 | G94: 0.2342611949 | H94: 0.3134611751 | J94: =J93 -> 0.675 | K94: =1/(a0+b0*SIN(xx)+c0*COS(xx)) -> 0.214804364 | L94: =L93 -> 0.675 | M94: =IF(xx<=x0,1/(a0+b0*SIN(xx)+c0*COS(xx)),M92) -> 0.214804364 | N94: =N93 -> 0.350926533 | O94: =IF(xx<=x0,2/((a0-c0)*zz^2+2*b0*zz+(a0+c0)),O92) -> 0.382503624
C95: 1.38 | D95: 0.1947343284 | E95: 0.316380604 | F95: 0.8253361053 | G95: 0.2316639083 | H95: 0.3163805482 | J95: =J93+dx -> 0.69 | K95: 0 | L95: =IF(xx<=x0,L93+dx,L93) -> 0.69 | M95: =K95 -> 0 | N95: =IF(xx<=x0,TAN(xx/2),N93) -> 0.3593725416 | O95: 0
C96: 1.395 | D96: 0.1949828957 | E96: 0.3193034832 | F96: 0.8380237275 | G96: 0.2290838923 | H96: 0.3193034452 | J96: =J95 -> 0.69 | K96: =1/(a0+b0*SIN(xx)+c0*COS(xx)) -> 0.2136360671 | L96: =L95 -> 0.69 | M96: =IF(xx<=x0,1/(a0+b0*SIN(xx)+c0*COS(xx)),M94) -> 0.2136360671 | N96: =N95 -> 0.3593725416 | O96: =IF(xx<=x0,2/((a0-c0)*zz^2+2*b0*zz+(a0+c0)),O94) -> 0.3784020325
C97: 1.41 | D97: 0.1952589329 | E97: 0.3222302969 | F97: 0.8508718494 | G97: 0.2265207299 | H97: 0.322230277 | J97: =J95+dx -> 0.705 | K97: 0 | L97: =IF(xx<=x0,L95+dx,L95) -> 0.705 | M97: =K97 -> 0 | N97: =IF(xx<=x0,TAN(xx/2),N95) -> 0.367864203 | O97: 0
C98: 1.425 | D98: 0.1955626085 | E98: 0.3251614585 | F98: 0.8638850091 | G98: 0.2239740135 | H98: 0.3251614571 | J98: =J97 -> 0.705 | K98: =1/(a0+b0*SIN(xx)+c0*COS(xx)) -> 0.2125076458 | L98: =L97 -> 0.705 | M98: =IF(xx<=x0,1/(a0+b0*SIN(xx)+c0*COS(xx)),M96) -> 0.2125076458 | N98: =N97 -> 0.367864203 | O98: =IF(xx<=x0,2/((a0-c0)*zz^2+2*b0*zz+(a0+c0)),O96) -> 0.3743559237
C99: 1.44 | D99: 0.1958941083 | E99: 0.3280973839 | F99: 0.8770678999 | G99: 0.2214433445 | H99: 0.3280974013 | J99: =J97+dx -> 0.72 | K99: 0 | L99: =IF(xx<=x0,L97+dx,L97) -> 0.72 | M99: =K99 -> 0 | N99: =IF(xx<=x0,TAN(xx/2),N97) -> 0.3764028516 | O99: 0
C100: =C99+dx -> 1.455 | D100: 0.1962536359 | E100: =E99+(D99+D100)*dx/2 -> 0.331038492 | F100: =TAN(x/2) -> 0.8904253767 | G100: 0.2189283333 | H100: 0.3310385285 | J100: =J99 -> 0.72 | K100: =1/(a0+b0*SIN(xx)+c0*COS(xx)) -> 0.2114182898 | L100: =L99 -> 0.72 | M100: =IF(xx<=x0,1/(a0+b0*SIN(xx)+c0*COS(xx)),M98) -> 0.2114182898 | N100: =N99 -> 0.3764028516 | O100: =IF(xx<=x0,2/((a0-c0)*zz^2+2*b0*zz+(a0+c0)),O98) -> 0.3703637713
C101: 1.47 | D101: 0.1966414125 | E101: 0.3339852048 | F101: 0.9039624639 | G101: 0.2164285989 | H101: 0.3339852609 | J101: =J99+dx -> 0.735 | K101: 0 | L101: =IF(xx<=x0,L99+dx,L99) -> 0.735 | M101: =K101 -> 0 | N101: =IF(xx<=x0,TAN(xx/2),N99) -> 0.3849898472 | O101: 0
C102: 1.485 | D102: 0.197057678 | E102: 0.336937948 | F102: 0.9176843628 | G102: 0.2139437687 | H102: 0.3369380239 | J102: =J101 -> 0.735 | K102: =1/(a0+b0*SIN(xx)+c0*COS(xx)) -> 0.2103672241 | L102: =L101 -> 0.735 | M102: =IF(xx<=x0,1/(a0+b0*SIN(xx)+c0*COS(xx)),M100) -> 0.2103672241 | N102: =N101 -> 0.3849898472 | O102: =IF(xx<=x0,2/((a0-c0)*zz^2+2*b0*zz+(a0+c0)),O100) -> 0.3664241005
C103: 1.5 | D103: 0.1975026906 | E103: 0.3398971508 | F103: 0.9315964599 | G103: 0.2114734783 | H103: 0.339897247 | J103: =J101+dx -> 0.75 | K103: 0 | L103: =IF(xx<=x0,L101+dx,L101) -> 0.75 | M103: =K103 -> 0 | N103: =IF(xx<=x0,TAN(xx/2),N101) -> 0.3936265759 | O103: 0
C104: 1.515 | D104: 0.1979767275 | E104: 0.3428632464 | F104: 0.9457043356 | G104: 0.2090173709 | H104: 0.3428633633 | J104: =J103 -> 0.75 | K104: =1/(a0+b0*SIN(xx)+c0*COS(xx)) -> 0.2093537081 | L104: =L103 -> 0.75 | M104: =IF(xx<=x0,1/(a0+b0*SIN(xx)+c0*COS(xx)),M102) -> 0.2093537081 | N104: =N103 -> 0.3936265759 | O104: =IF(xx<=x0,2/((a0-c0)*zz^2+2*b0*zz+(a0+c0)),O102) -> 0.362535486
C105: 1.53 | D105: 0.1984800853 | E105: 0.3458366725 | F105: 0.9600137728 | G105: 0.2065750978 | H105: 0.3458368104 | J105: =J103+dx -> 0.765 | K105: 0 | L105: =IF(xx<=x0,L103+dx,L103) -> 0.765 | M105: =K105 -> 0 | N105: =IF(xx<=x0,TAN(xx/2),N103) -> 0.4023144513 | O105: 0
C106: 1.545 | D106: 0.1990130804 | E106: 0.3488178712 | F106: 0.9745307671 | G106: 0.2041463175 | H106: 0.3488180307 | J106: =J105 -> 0.765 | K106: =1/(a0+b0*SIN(xx)+c0*COS(xx)) -> 0.2083770338 | L106: =L105 -> 0.765 | M106: =IF(xx<=x0,1/(a0+b0*SIN(xx)+c0*COS(xx)),M104) -> 0.2083770338 | N106: =N105 -> 0.4023144513 | O106: =IF(xx<=x0,2/((a0-c0)*zz^2+2*b0*zz+(a0+c0)),O104) -> 0.3586965496
C107: 1.56 | D107: 0.1995760495 | E107: 0.3518072897 | F107: 0.9892615369 | G107: 0.2017306959 | H107: 0.3518074711 | J107: =J105+dx -> 0.78 | K107: 0 | L107: =IF(xx<=x0,L105+dx,L105) -> 0.78 | M107: =K107 -> 0 | N107: =IF(xx<=x0,TAN(xx/2),N105) -> 0.4110549152 | O107: 0
C108: 1.575 | D108: 0.20016935 | E108: 0.3548053802 | F108: 1.004212533 | G108: 0.1993279059 | H108: 0.354805584 | J108: =J107 -> 0.78 | K108: =1/(a0+b0*SIN(xx)+c0*COS(xx)) -> 0.2074365249 | L108: =L107 -> 0.78 | M108: =IF(xx<=x0,1/(a0+b0*SIN(xx)+c0*COS(xx)),M106) -> 0.2074365249 | N108: =N107 -> 0.4110549152 | O108: =IF(xx<=x0,2/((a0-c0)*zz^2+2*b0*zz+(a0+c0)),O106) -> 0.3549059588
C109: 1.59 | D109: 0.2007933606 | E109: 0.3578126005 | F109: 1.019390453 | G109: 0.1969376275 | H109: 0.3578128272 | J109: =J107+dx -> 0.795 | K109: 0 | L109: =IF(xx<=x0,L107+dx,L107) -> 0.795 | M109: =K109 -> 0 | N109: =IF(xx<=x0,TAN(xx/2),N107) -> 0.4198494389 | O109: 0
C110: 1.605 | D110: 0.2014484819 | E110: 0.3608294144 | F110: 1.034802249 | G110: 0.1945595472 | H110: 0.3608296644 | J110: =J109 -> 0.795 | K110: =1/(a0+b0*SIN(xx)+c0*COS(xx)) -> 0.2065315358 | L110: =L109 -> 0.795 | M110: =IF(xx<=x0,1/(a0+b0*SIN(xx)+c0*COS(xx)),M108) -> 0.2065315358 | N110: =N109 -> 0.4198494389 | O110: =IF(xx<=x0,2/((a0-c0)*zz^2+2*b0*zz+(a0+c0)),O108) -> 0.3511624241
C111: 1.62 | D111: 0.2021351369 | E111: 0.3638562915 | F111: 1.050455142 | G111: 0.1921933584 | H111: 0.3638565654 | J111: =J109+dx -> 0.81 | K111: 0 | L111: =IF(xx<=x0,L109+dx,L109) -> 0.81 | M111: =K111 -> 0 | N111: =IF(xx<=x0,TAN(xx/2),N109) -> 0.4286995242 | O111: 0
C112: 1.635 | D112: 0.2028537719 | E112: 0.3668937083 | F112: 1.066356639 | G112: 0.1898387605 | H112: 0.3668940067 | J112: =J111 -> 0.81 | K112: =1/(a0+b0*SIN(xx)+c0*COS(xx)) -> 0.2056614502 | L112: =L111 -> 0.81 | M112: =IF(xx<=x0,1/(a0+b0*SIN(xx)+c0*COS(xx)),M110) -> 0.2056614502 | N112: =N111 -> 0.4286995242 | O112: =IF(xx<=x0,2/((a0-c0)*zz^2+2*b0*zz+(a0+c0)),O110) -> 0.3474646978
C113: 1.65 | D113: 0.2036048567 | E113: 0.369942148 | F113: 1.082514541 | G113: 0.1874954595 | H113: 0.3699424714 | J113: =J111+dx -> 0.825 | K113: 0 | L113: =IF(xx<=x0,L111+dx,L111) -> 0.825 | M113: =K113 -> 0 | N113: =IF(xx<=x0,TAN(xx/2),N111) -> 0.4376067046 | O113: 0
C114: 1.665 | D114: 0.2043888858 | E114: 0.3730021011 | F114: 1.098936963 | G114: 0.1851631674 | H114: 0.37300245 | J114: =J113 -> 0.825 | K114: =1/(a0+b0*SIN(xx)+c0*COS(xx)) -> 0.2048256802 | L114: =L113 -> 0.825 | M114: =IF(xx<=x0,1/(a0+b0*SIN(xx)+c0*COS(xx)),M112) -> 0.2048256802 | N114: =N113 -> 0.4376067046 | O114: =IF(xx<=x0,2/((a0-c0)*zz^2+2*b0*zz+(a0+c0)),O112) -> 0.3438115723
C115: 1.68 | D115: 0.2052063791 | E115: 0.3760740656 | F115: 1.115632349 | G115: 0.1828416023 | H115: 0.3760744407 | J115: =J113+dx -> 0.84 | K115: 0 | L115: =IF(xx<=x0,L113+dx,L113) -> 0.84 | M115: =K115 -> 0 | N115: =IF(xx<=x0,TAN(xx/2),N113) -> 0.4465725463 | O115: 0
C116: 1.695 | D116: 0.2060578824 | E116: 0.3791585475 | F116: 1.132609485 | G116: 0.1805304881 | H116: 0.3791589495 | J116: =J115 -> 0.84 | K116: =1/(a0+b0*SIN(xx)+c0*COS(xx)) -> 0.2040236655 | L116: =L115 -> 0.84 | M116: =IF(xx<=x0,1/(a0+b0*SIN(xx)+c0*COS(xx)),M114) -> 0.2040236655 | N116: =N115 -> 0.4465725463 | O116: =IF(xx<=x0,2/((a0-c0)*zz^2+2*b0*zz+(a0+c0)),O114) -> 0.3402018779
C117: 1.71 | D117: 0.2069439685 | E117: 0.3822560614 | F117: 1.149877525 | G117: 0.1782295544 | H117: 0.382256491 | J117: =J115+dx -> 0.855 | K117: 0 | L117: =IF(xx<=x0,L115+dx,L115) -> 0.855 | M117: =K117 -> 0 | N117: =IF(xx<=x0,TAN(xx/2),N115) -> 0.4555986494 | O117: 0
C118: 1.725 | D118: 0.2078652384 | E118: 0.3853671305 | F118: 1.167446004 | G118: 0.1759385367 | H118: 0.3853675883 | J118: =J117 -> 0.855 | K118: =1/(a0+b0*SIN(xx)+c0*COS(xx)) -> 0.2032548724 | L118: =L117 -> 0.855 | M118: =IF(xx<=x0,1/(a0+b0*SIN(xx)+c0*COS(xx)),M116) -> 0.2032548724 | N118: =N117 -> 0.4555986494 | O118: =IF(xx<=x0,2/((a0-c0)*zz^2+2*b0*zz+(a0+c0)),O116) -> 0.3366344818
C119: 1.74 | D119: 0.2088223218 | E119: 0.3884922872 | F119: 1.18532486 | G119: 0.1736571757 | H119: 0.388492774 | J119: =J117+dx -> 0.87 | K119: 0 | L119: =IF(xx<=x0,L117+dx,L117) -> 0.87 | M119: =K119 -> 0 | N119: =IF(xx<=x0,TAN(xx/2),N117) -> 0.4646866494 | O119: 0
C120: 1.755 | D120: 0.2098158781 | E120: 0.3916320737 | F120: 1.203524457 | G120: 0.1713852179 | H120: 0.3916325903 | J120: =J119 -> 0.87 | K120: =1/(a0+b0*SIN(xx)+c0*COS(xx)) -> 0.2025187927 | L120: =L119 -> 0.87 | M120: =IF(xx<=x0,1/(a0+b0*SIN(xx)+c0*COS(xx)),M118) -> 0.2025187927 | N120: =N119 -> 0.4646866494 | O120: =IF(xx<=x0,2/((a0-c0)*zz^2+2*b0*zz+(a0+c0)),O118) -> 0.3331082866
C121: 1.77 | D121: 0.2108465983 | E121: 0.3947870423 | F121: 1.222055609 | G121: 0.1691224149 | H121: 0.3947875895 | J121: =J119+dx -> 0.885 | K121: 0 | L121: =IF(xx<=x0,L119+dx,L119) -> 0.885 | M121: =K121 -> 0 | N121: =IF(xx<=x0,TAN(xx/2),N119) -> 0.4738382182 | O121: 0
C122: 1.785 | D122: 0.211915205 | E122: 0.3979577558 | F122: 1.2409296 | G122: 0.1668685238 | H122: 0.3979583345 | J122: =J121 -> 0.885 | K122: =1/(a0+b0*SIN(xx)+c0*COS(xx)) -> 0.2018149435 | L122: =L121 -> 0.885 | M122: =IF(xx<=x0,1/(a0+b0*SIN(xx)+c0*COS(xx)),M120) -> 0.2018149435 | N122: =N121 -> 0.4738382182 | O122: =IF(xx<=x0,2/((a0-c0)*zz^2+2*b0*zz+(a0+c0)),O120) -> 0.3296222284
C123: 1.8 | D123: 0.2130224547 | E123: 0.4011447882 | F123: 1.260158218 | G123: 0.1646233068 | H123: 0.4011453993 | J123: =J121+dx -> 0.9 | K123: 0 | L123: =IF(xx<=x0,L121+dx,L121) -> 0.9 | M123: =K123 -> 0 | N123: =IF(xx<=x0,TAN(xx/2),N121) -> 0.4830550656 | O123: 0
C124: 1.815 | D124: 0.2141691384 | E124: 0.4043487252 | F124: 1.279753777 | G124: 0.1623865313 | H124: 0.4043493696 | J124: =J123 -> 0.9 | K124: =1/(a0+b0*SIN(xx)+c0*COS(xx)) -> 0.2011428657 | L124: =L123 -> 0.9 | M124: =IF(xx<=x0,1/(a0+b0*SIN(xx)+c0*COS(xx)),M122) -> 0.2011428657 | N124: =N123 -> 0.4830550656 | O124: =IF(xx<=x0,2/((a0-c0)*zz^2+2*b0*zz+(a0+c0)),O122) -> 0.3261752761
C125: 1.83 | D125: 0.2153560832 | E125: 0.4075701643 | F125: 1.299729151 | G125: 0.1601579699 | H125: 0.4075708432 | J125: =J123+dx -> 0.915 | K125: 0 | L125: =IF(xx<=x0,L123+dx,L123) -> 0.915 | M125: =K125 -> 0 | N125: =IF(xx<=x0,TAN(xx/2),N123) -> 0.4923389408 | O125: 0
C126: 1.845 | D126: 0.216584154 | E126: 0.4108097161 | F126: 1.320097805 | G126: 0.1579374002 | H126: 0.4108104305 | J126: =J125 -> 0.915 | K126: =1/(a0+b0*SIN(xx)+c0*COS(xx)) -> 0.200502124 | L126: =L125 -> 0.915 | M126: =IF(xx<=x0,1/(a0+b0*SIN(xx)+c0*COS(xx)),M124) -> 0.200502124 | N126: =N125 -> 0.4923389408 | O126: =IF(xx<=x0,2/((a0-c0)*zz^2+2*b0*zz+(a0+c0)),O124) -> 0.3227664296
C127: 1.86 | D127: 0.2178542546 | E127: 0.4140680042 | F127: 1.340873829 | G127: 0.1557246047 | H127: 0.4140687551 | J127: =J125+dx -> 0.93 | K127: 0 | L127: =IF(xx<=x0,L125+dx,L125) -> 0.93 | M127: =K127 -> 0 | N127: =IF(xx<=x0,TAN(xx/2),N125) -> 0.5016916337 | O127: 0
C128: 1.875 | D128: 0.2191673297 | E128: 0.4173456661 | F128: 1.362071976 | G128: 0.153519371 | H128: 0.4173464548 | J128: =J127 -> 0.93 | K128: =1/(a0+b0*SIN(xx)+c0*COS(xx)) -> 0.1998923058 | L128: =L127 -> 0.93 | M128: =IF(xx<=x0,1/(a0+b0*SIN(xx)+c0*COS(xx)),M126) -> 0.1998923058 | N128: =N127 -> 0.5016916337 | O128: =IF(xx<=x0,2/((a0-c0)*zz^2+2*b0*zz+(a0+c0)),O126) -> 0.319394719
C129: 1.89 | D129: 0.2205243666 | E129: 0.4206433538 | F129: 1.383707703 | G129: 0.1513214918 | H129: 0.4206441816 | J129: =J127+dx -> 0.945 | K129: 0 | L129: =IF(xx<=x0,L127+dx,L127) -> 0.945 | M129: =K129 -> 0 | N129: =IF(xx<=x0,TAN(xx/2),N127) -> 0.5111149761 | O129: 0
C130: 1.905 | D130: 0.2219263969 | E130: 0.4239617345 | F130: 1.405797211 | G130: 0.1491307646 | H130: 0.4239626028 | J130: =J129 -> 0.945 | K130: =1/(a0+b0*SIN(xx)+c0*COS(xx)) -> 0.1993130206 | L130: =L129 -> 0.945 | M130: =IF(xx<=x0,1/(a0+b0*SIN(xx)+c0*COS(xx)),M128) -> 0.1993130206 | N130: =N129 -> 0.5111149761 | O130: =IF(xx<=x0,2/((a0-c0)*zz^2+2*b0*zz+(a0+c0)),O128) -> 0.3160592031
C131: 1.92 | D131: =1/(a0+b0*SIN(x)+c0*COS(x)) -> 0.2233744986 | E131: 0.4273014912 | F131: 1.428357491 | G131: =2/((a0-c0)*z^2+2*b0*z+(a0+c0)) -> 0.1469469918 | H131: 0.4273024014 | J131: =J129+dx -> 0.96 | K131: 0 | L131: =IF(xx<=x0,L129+dx,L129) -> 0.96 | M131: =K131 -> 0 | N131: =IF(xx<=x0,TAN(xx/2),N129) -> 0.5206108442 | O131: 0
C132: =C131+dx -> 1.935 | D132: 0.2248697979 | E132: =E131+(D131+D132)*dx/2 -> 0.4306633234 | F132: =TAN(x/2) -> 1.451406377 | G132: 0.144769981 | H132: 0.430664277 | J132: =J131 -> 0.96 | K132: =1/(a0+b0*SIN(xx)+c0*COS(xx)) -> 0.1987638996 | L132: =L131 -> 0.96 | M132: =IF(xx<=x0,1/(a0+b0*SIN(xx)+c0*COS(xx)),M130) -> 0.1987638996 | N132: =N131 -> 0.5206108442 | O132: =IF(xx<=x0,2/((a0-c0)*zz^2+2*b0*zz+(a0+c0)),O130) -> 0.3127589685
C133: 1.95 | D133: 0.226413472 | E133: 0.434047948 | F133: 1.474962594 | G133: 0.1425995447 | H133: =H132+(G132+G133)*(F133-F132)/2 -> 0.4340489466 | J133: =J131+dx -> 0.975 | K133: 0 | L133: =IF(xx<=x0,L131+dx,L131) -> 0.975 | M133: =K133 -> 0 | N133: =IF(xx<=x0,TAN(xx/2),N131) -> 0.5301811591 | O133: 0
C134: 1.965 | D134: 0.2280067507 | E134: 0.4374560996 | F134: 1.49904582 | G134: 0.1404355003 | H134: 0.4374571449 | J134: =J133 -> 0.975 | K134: =1/(a0+b0*SIN(xx)+c0*COS(xx)) -> 0.1982445949 | L134: =L133 -> 0.975 | M134: =IF(xx<=x0,1/(a0+b0*SIN(xx)+c0*COS(xx)),M132) -> 0.1982445949 | N134: =N133 -> 0.5301811591 | O134: =IF(xx<=x0,2/((a0-c0)*zz^2+2*b0*zz+(a0+c0)),O132) -> 0.3094931284
C135: 1.98 | D135: 0.2296509195 | E135: 0.4408885322 | F135: 1.523676741 | G135: 0.1382776703 | H135: 0.440889626 | J135: =J133+dx -> 0.99 | K135: 0 | L135: =IF(xx<=x0,L133+dx,L133) -> 0.99 | M135: =K135 -> 0 | N135: =IF(xx<=x0,TAN(xx/2),N133) -> 0.5398278893 | O135: 0
C136: 1.995 | D136: 0.2313473219 | E136: 0.444346019 | F136: 1.548877124 | G136: 0.1361258824 | H136: 0.4443471633 | J136: =J135 -> 0.99 | K136: =1/(a0+b0*SIN(xx)+c0*COS(xx)) -> 0.1977547794 | L136: =L135 -> 0.99 | M136: =IF(xx<=x0,1/(a0+b0*SIN(xx)+c0*COS(xx)),M134) -> 0.1977547794 | N136: =N135 -> 0.5398278893 | O136: =IF(xx<=x0,2/((a0-c0)*zz^2+2*b0*zz+(a0+c0)),O134) -> 0.3062608217
C137: 2.01 | D137: 0.2330973622 | E137: 0.4478293541 | F137: 1.574669884 | G137: 0.1339799694 | H137: 0.447830551 | J137: =J135+dx -> 1.005 | K137: 0 | L137: =IF(xx<=x0,L135+dx,L135) -> 1.005 | M137: =K137 -> 0 | N137: =IF(xx<=x0,TAN(xx/2),N135) -> 0.5495530521 | O137: 0
C138: 2.025 | D138: 0.2349025085 | E138: 0.4513393531 | F138: 1.601079162 | G138: 0.1318397693 | H138: 0.4513406048 | J138: =J137 -> 1.005 | K138: =1/(a0+b0*SIN(xx)+c0*COS(xx)) -> 0.1972941457 | L138: =L137 -> 1.005 | M138: =IF(xx<=x0,1/(a0+b0*SIN(xx)+c0*COS(xx)),M136) -> 0.1972941457 | N138: =N137 -> 0.5495530521 | O138: =IF(xx<=x0,2/((a0-c0)*zz^2+2*b0*zz+(a0+c0)),O136) -> 0.3030612121
C139: 2.04 | D139: 0.2367642963 | E139: 0.4548768542 | F139: 1.628130412 | G139: 0.1297051255 | H139: 0.4548781629 | J139: =J137+dx -> 1.02 | K139: 0 | L139: =IF(xx<=x0,L137+dx,L137) -> 1.02 | M139: =K139 -> 0 | N139: =IF(xx<=x0,TAN(xx/2),N137) -> 0.5593587156 | O139: 0
C140: 2.055 | D140: 0.2386843311 | E140: 0.4584427189 | F140: 1.655850486 | G140: 0.1275758867 | H140: 0.4584440872 | J140: =J139 -> 1.02 | K140: =1/(a0+b0*SIN(xx)+c0*COS(xx)) -> 0.1968624063 | L140: =L139 -> 1.02 | M140: =IF(xx<=x0,1/(a0+b0*SIN(xx)+c0*COS(xx)),M138) -> 0.1968624063 | N140: =N139 -> 0.5593587156 | O140: =IF(xx<=x0,2/((a0-c0)*zz^2+2*b0*zz+(a0+c0)),O138) -> 0.2998934868
C141: 2.07 | D141: 0.2406642925 | E141: 0.4620378336 | F141: 1.684267735 | G141: 0.1254519074 | H141: 0.4620392642 | J141: =J139+dx -> 1.035 | K141: 0 | L141: =IF(xx<=x0,L139+dx,L139) -> 1.035 | M141: =K141 -> 0 | N141: =IF(xx<=x0,TAN(xx/2),N139) -> 0.5692470006 | O141: 0
C142: 2.085 | D142: 0.2427059378 | E142: 0.4656631103 | F142: 1.713412117 | G142: 0.1233330476 | H142: 0.4656646061 | J142: =J141 -> 1.035 | K142: =1/(a0+b0*SIN(xx)+c0*COS(xx)) -> 0.1964592927 | L142: =L141 -> 1.035 | M142: =IF(xx<=x0,1/(a0+b0*SIN(xx)+c0*COS(xx)),M140) -> 0.1964592927 | N142: =N141 -> 0.5692470006 | O142: =IF(xx<=x0,2/((a0-c0)*zz^2+2*b0*zz+(a0+c0)),O140) -> 0.2967568563
C143: 2.1 | D143: 0.2448111065 | E143: 0.4693194881 | F143: 1.74331531 | G143: 0.121219173 | H143: 0.4693210522 | J143: =J141+dx -> 1.05 | K143: 0 | L143: =IF(xx<=x0,L141+dx,L141) -> 1.05 | M143: =K143 -> 0 | N143: =IF(xx<=x0,TAN(xx/2),N141) -> 0.5792200823 | O143: 0
C144: 2.115 | D144: 0.2469817238 | E144: 0.4730079343 | F144: 1.774010837 | G144: 0.1191101556 | H144: 0.4730095699 | J144: =J143 -> 1.05 | K144: =1/(a0+b0*SIN(xx)+c0*COS(xx)) -> 0.1960845552 | L144: =L143 -> 1.05 | M144: =IF(xx<=x0,1/(a0+b0*SIN(xx)+c0*COS(xx)),M142) -> 0.1960845552 | N144: =N143 -> 0.5792200823 | O144: =IF(xx<=x0,2/((a0-c0)*zz^2+2*b0*zz+(a0+c0)),O142) -> 0.2936505528
C145: 2.13 | D145: 0.249219806 | E145: 0.4767294458 | F145: 1.805534208 | G145: 0.1170058734 | H145: 0.4767311564 | J145: =J143+dx -> 1.065 | K145: 0 | L145: =IF(xx<=x0,L143+dx,L143) -> 1.065 | M145: =K145 -> 0 | N145: =IF(xx<=x0,TAN(xx/2),N143) -> 0.5892801928 | O145: 0
C146: 2.145 | D146: 0.2515274651 | E146: 0.4804850504 | F146: 1.837923062 | G146: 0.1149062107 | H146: 0.4804868398 | J146: =J145 -> 1.065 | K146: =1/(a0+b0*SIN(xx)+c0*COS(xx)) -> 0.1957379626 | L146: =L145 -> 1.065 | M146: =IF(xx<=x0,1/(a0+b0*SIN(xx)+c0*COS(xx)),M144) -> 0.1957379626 | N146: =N145 -> 0.5892801928 | O146: =IF(xx<=x0,2/((a0-c0)*zz^2+2*b0*zz+(a0+c0)),O144) -> 0.2905738299
C147: 2.16 | D147: 0.2539069142 | E147: 0.4842758082 | F147: 1.871217338 | G147: 0.1128110587 | H147: 0.4842776806 | J147: =J145+dx -> 1.08 | K147: 0 | L147: =IF(xx<=x0,L145+dx,L145) -> 1.08 | M147: =K147 -> 0 | N147: =IF(xx<=x0,TAN(xx/2),N145) -> 0.5994296232 | O147: 0
C148: 2.175 | D148: 0.2563604728 | E148: 0.4881028136 | F148: 1.905459446 | G148: 0.1107203153 | H148: 0.4881047733 | J148: =J147 -> 1.08 | K148: =1/(a0+b0*SIN(xx)+c0*COS(xx)) -> 0.1954193018 | L148: =L147 -> 1.08 | M148: =IF(xx<=x0,1/(a0+b0*SIN(xx)+c0*COS(xx)),M146) -> 0.1954193018 | N148: =N147 -> 0.5994296232 | O148: =IF(xx<=x0,2/((a0-c0)*zz^2+2*b0*zz+(a0+c0)),O146) -> 0.2875259617
C149: 2.19 | D149: 0.2588905732 | E149: 0.4919671964 | F149: 1.940694466 | G149: 0.1086338855 | H149: 0.4919692481 | J149: =J147+dx -> 1.095 | K149: 0 | L149: =IF(xx<=x0,L147+dx,L147) -> 1.095 | M149: =K149 -> 0 | N149: =IF(xx<=x0,TAN(xx/2),N147) -> 0.6096707254 | O149: 0
C150: 2.205 | D150: 0.2614997669 | E150: 0.495870124 | F150: 1.976970362 | G150: 0.1065516819 | H150: 0.4958722727 | J150: =J149 -> 1.095 | K150: =1/(a0+b0*SIN(xx)+c0*COS(xx)) -> 0.1951283775 | L150: =L149 -> 1.095 | M150: =IF(xx<=x0,1/(a0+b0*SIN(xx)+c0*COS(xx)),M148) -> 0.1951283775 | N150: =N149 -> 0.6096707254 | O150: =IF(xx<=x0,2/((a0-c0)*zz^2+2*b0*zz+(a0+c0)),O148) -> 0.2845062419
C151: 2.22 | D151: 0.2641907313 | E151: 0.4998128027 | F151: 2.014338214 | G151: 0.1044736247 | H151: 0.499815054 | J151: =J149+dx -> 1.11 | K151: 0 | L151: =IF(xx<=x0,L149+dx,L149) -> 1.11 | M151: =K151 -> 0 | N151: =IF(xx<=x0,TAN(xx/2),N149) -> 0.6200059151 | O151: 0
C152: 2.235 | D152: 0.2669662772 | E152: 0.5037964803 | F152: 2.052852481 | G152: 0.1023996425 | H152: 0.5037988401 | J152: =J151 -> 1.11 | K152: =1/(a0+b0*SIN(xx)+c0*COS(xx)) -> 0.1948650118 | L152: =L151 -> 1.11 | M152: =IF(xx<=x0,1/(a0+b0*SIN(xx)+c0*COS(xx)),M150) -> 0.1948650118 | N152: =N151 -> 0.6200059151 | O152: =IF(xx<=x0,2/((a0-c0)*zz^2+2*b0*zz+(a0+c0)),O150) -> 0.2815139835
C153: 2.25 | D153: 0.2698293569 | E153: 0.5078224476 | F153: 2.092571276 | G153: 0.1003296722 | H153: 0.5078249222 | J153: =J151+dx -> 1.125 | K153: 0 | L153: =IF(xx<=x0,L151+dx,L151) -> 1.125 | M153: =K153 -> 0 | N153: =IF(xx<=x0,TAN(xx/2),N151) -> 0.6304376738 | O153: 0
C154: 2.265 | D154: 0.2727830721 | E154: 0.5118920408 | F154: 2.133556691 | G154: 0.09826366002 | H154: 0.5118946372 | J154: =J153 -> 1.125 | K154: =1/(a0+b0*SIN(xx)+c0*COS(xx)) -> 0.1946290442 | L154: =L153 -> 1.125 | M154: =IF(xx<=x0,1/(a0+b0*SIN(xx)+c0*COS(xx)),M152) -> 0.1946290442 | N154: =N153 -> 0.6304376738 | O154: =IF(xx<=x0,2/((a0-c0)*zz^2+2*b0*zz+(a0+c0)),O152) -> 0.2785485175
C155: 2.28 | D155: 0.2758306841 | E155: 0.5160066439 | F155: 2.175875131 | G155: 0.09620156132 | H155: 0.5160093696 | J155: =J153+dx -> 1.14 | K155: 0 | L155: =IF(xx<=x0,L153+dx,L153) -> 1.14 | M155: =K155 -> 0 | N155: =IF(xx<=x0,TAN(xx/2),N153) -> 0.6409685517 | O155: 0
C156: 2.295 | D156: 0.2789756225 | E156: 0.5201676912 | F156: 2.219597707 | G156: 0.09414334167 | H156: 0.5201705544 | J156: =J155 -> 1.14 | K156: =1/(a0+b0*SIN(xx)+c0*COS(xx)) -> 0.1944203312 | L156: =L155 -> 1.14 | M156: =IF(xx<=x0,1/(a0+b0*SIN(xx)+c0*COS(xx)),M154) -> 0.1944203312 | N156: =N155 -> 0.6409685517 | O156: =IF(xx<=x0,2/((a0-c0)*zz^2+2*b0*zz+(a0+c0)),O154) -> 0.275609193
C157: 2.31 | D157: 0.2822214965 | E157: 0.5243766696 | F157: 2.264800652 | G157: 0.09208897714 | H157: 0.524379679 | J157: =J155+dx -> 1.155 | K157: 0 | L157: =IF(xx<=x0,L155+dx,L155) -> 1.155 | M157: =K157 -> 0 | N157: =IF(xx<=x0,TAN(xx/2),N155) -> 0.65160117 | O157: 0
C158: 2.325 | D158: 0.285572106 | E158: 0.5286351217 | F158: 2.311565797 | G158: 0.09003845501 | H158: 0.5286382869 | J158: =J157 -> 1.155 | K158: =1/(a0+b0*SIN(xx)+c0*COS(xx)) -> 0.1942387462 | L158: =L157 -> 1.155 | M158: =IF(xx<=x0,1/(a0+b0*SIN(xx)+c0*COS(xx)),M156) -> 0.1942387462 | N158: =N157 -> 0.65160117 | O158: =IF(xx<=x0,2/((a0-c0)*zz^2+2*b0*zz+(a0+c0)),O156) -> 0.2726953759
C159: 2.34 | D159: 0.2890314541 | E159: 0.5329446484 | F159: 2.359981091 | G159: 0.08799177442 | H159: 0.5329479799 | J159: =J157+dx -> 1.17 | K159: 0 | L159: =IF(xx<=x0,L157+dx,L157) -> 1.17 | M159: =K159 -> 0 | N159: =IF(xx<=x0,TAN(xx/2),N157) -> 0.662338224 | O159: 0
C160: 2.355 | D160: 0.2926037599 | E160: 0.5373069125 | F160: 2.410141189 | G160: 0.08594894714 | H160: 0.5373104217 | J160: =J159 -> 1.17 | K160: =1/(a0+b0*SIN(xx)+c0*COS(xx)) -> 0.1940841792 | L160: =L159 -> 1.17 | M160: =IF(xx<=x0,1/(a0+b0*SIN(xx)+c0*COS(xx)),M158) -> 0.1940841792 | N160: =N159 -> 0.662338224 | O160: =IF(xx<=x0,2/((a0-c0)*zz^2+2*b0*zz+(a0+c0)),O158) -> 0.2698064487
C161: 2.37 | D161: 0.2962934732 | E161: 0.5417236417 | F161: 2.462148098 | G161: 0.08390999833 | H161: 0.541727341 | J161: =J159+dx -> 1.185 | K161: 0 | L161: =IF(xx<=x0,L159+dx,L159) -> 1.185 | M161: =K161 -> 0 | N161: =IF(xx<=x0,TAN(xx/2),N159) -> 0.6731824861 | O161: 0
C162: 2.385 | D162: 0.3001052898 | E162: 0.5461966324 | F162: 2.516111911 | G162: 0.08187496748 | H162: 0.5462005355 | J162: =J161 -> 1.185 | K162: =1/(a0+b0*SIN(xx)+c0*COS(xx)) -> 0.1939565368 | L162: =L161 -> 1.185 | M162: =IF(xx<=x0,1/(a0+b0*SIN(xx)+c0*COS(xx)),M160) -> 0.1939565368 | N162: =N161 -> 0.6731824861 | O162: =IF(xx<=x0,2/((a0-c0)*zz^2+2*b0*zz+(a0+c0)),O160) -> 0.2669418098
C163: 2.4 | D163: 0.3040441682 | E163: 0.5507277534 | F163: 2.572151622 | G163: 0.07984390931 | H163: 0.550731875 | J163: =J161+dx -> 1.2 | K163: 0 | L163: =IF(xx<=x0,L161+dx,L161) -> 1.2 | M163: =K163 -> 0 | N163: =IF(xx<=x0,TAN(xx/2),N161) -> 0.6841368083 | O163: 0
C164: =C163+dx -> 2.415 | D164: 0.3081153476 | E164: =E163+(D163+D164)*dx/2 -> 0.5553189497 | F164: =TAN(x/2) -> 2.630396045 | G164: 0.07781689487 | H164: 0.5553233063 | J164: =J163 -> 1.2 | K164: =1/(a0+b0*SIN(xx)+c0*COS(xx)) -> 0.1938557418 | L164: =L163 -> 1.2 | M164: =IF(xx<=x0,1/(a0+b0*SIN(xx)+c0*COS(xx)),M162) -> 0.1938557418 | N164: =N163 -> 0.6841368083 | O164: =IF(xx<=x0,2/((a0-c0)*zz^2+2*b0*zz+(a0+c0)),O162) -> 0.2641008731
C165: 2.43 | D165: 0.3123243678 | E165: 0.5599722476 | F165: 2.69098485 | G165: 0.07579401267 | H165: 0.559976857 | J165: =J163+dx -> 1.215 | K165: 0 | L165: =IF(xx<=x0,L163+dx,L163) -> 1.215 | M165: =K165 -> 0 | N165: =IF(xx<=x0,TAN(xx/2),N163) -> 0.6952041263 | O165: 0
C166: 2.445 | D166: 0.3166770901 | E166: 0.5646897585 | F166: 2.754069733 | G166: 0.07377536993 | H166: 0.5646946404 | J166: =J165 -> 1.215 | K166: =1/(a0+b0*SIN(xx)+c0*COS(xx)) -> 0.1937817335 | L166: =L165 -> 1.215 | M166: =IF(xx<=x0,1/(a0+b0*SIN(xx)+c0*COS(xx)),M164) -> 0.1937817335 | N166: =N165 -> 0.6952041263 | O166: =IF(xx<=x0,2/((a0-c0)*zz^2+2*b0*zz+(a0+c0)),O164) -> 0.2612830672
C167: 2.46 | D167: 0.3211797207 | E167: 0.5694736846 | F167: 2.819815734 | G167: 0.07176109393 | H167: 0.5694788607 | J167: =J165+dx -> 1.23 | K167: 0 | L167: =IF(xx<=x0,L165+dx,L165) -> 1.23 | M167: =K167 -> 0 | N167: =IF(xx<=x0,TAN(xx/2),N165) -> 0.7063874621 | O167: 0
C168: 2.475 | D168: 0.3258388359 | E168: 0.5743263238 | F168: 2.888402747 | G168: 0.06975133359 | H168: 0.574331818 | J168: =J167 -> 1.23 | K168: =1/(a0+b0*SIN(xx)+c0*COS(xx)) -> 0.1937344672 | L168: =L167 -> 1.23 | M168: =IF(xx<=x0,1/(a0+b0*SIN(xx)+c0*COS(xx)),M166) -> 0.1937344672 | N168: =N167 -> 0.7063874621 | O168: =IF(xx<=x0,2/((a0-c0)*zz^2+2*b0*zz+(a0+c0)),O166) -> 0.2584878352
C169: 2.49 | D169: 0.3306614091 | E169: 0.5792500756 | F169: 2.96002722 | G169: 0.067746261 | H169: 0.5792559145 | J169: =J167+dx -> 1.245 | K169: 0 | L169: =IF(xx<=x0,L167+dx,L167) -> 1.245 | M169: =K169 -> 0 | N169: =IF(xx<=x0,TAN(xx/2),N167) -> 0.7176899278 | O169: 0
C170: 2.505 | D170: 0.3356548413 | E170: 0.5842474475 | F170: 3.034904115 | G170: 0.06574607332 | H170: 0.5842536602 | J170: =J169 -> 1.245 | K170: =1/(a0+b0*SIN(xx)+c0*COS(xx)) -> 0.1937139145 | L170: =L169 -> 1.245 | M170: =IF(xx<=x0,1/(a0+b0*SIN(xx)+c0*COS(xx)),M168) -> 0.1937139145 | N170: =N169 -> 0.7176899278 | O170: =IF(xx<=x0,2/((a0-c0)*zz^2+2*b0*zz+(a0+c0)),O168) -> 0.2557146339
C171: 2.52 | D171: 0.3408269929 | E171: 0.5893210613 | F171: 3.113269134 | G171: 0.06375099472 | H171: 0.5893276803 | J171: =J169+dx -> 1.26 | K171: 0 | L171: =IF(xx<=x0,L169+dx,L169) -> 1.26 | M171: =K171 -> 0 | N171: =IF(xx<=x0,TAN(xx/2),N169) -> 0.7291147292 | O171: 0
C172: 2.535 | D172: 0.3461862201 | E172: 0.5944736604 | F172: 3.195381288 | G172: 0.06176127854 | H172: 0.5944807219 | J172: =J171 -> 1.26 | K172: =1/(a0+b0*SIN(xx)+c0*COS(xx)) -> 0.1937200631 | L172: =L171 -> 1.26 | M172: =IF(xx<=x0,1/(a0+b0*SIN(xx)+c0*COS(xx)),M170) -> 0.1937200631 | N172: =N171 -> 0.7291147292 | O172: =IF(xx<=x0,2/((a0-c0)*zz^2+2*b0*zz+(a0+c0)),O170) -> 0.2529629339
C173: 2.55 | D173: 0.3517414134 | E173: 0.5997081176 | F173: 3.281525851 | G173: 0.05977720971 | H173: 0.5997156618 | J173: =J171+dx -> 1.275 | K173: 0 | L173: =IF(xx<=x0,L171+dx,L171) -> 1.275 | M173: =K173 -> 0 | N173: =IF(xx<=x0,TAN(xx/2),N171) -> 0.7406651699 | O173: 0
C174: 2.565 | D174: 0.3575020406 | E174: 0.6050274435 | F174: 3.372017774 | G174: 0.05779910737 | H174: 0.6050355153 | J174: =J173 -> 1.275 | K174: =1/(a0+b0*SIN(xx)+c0*COS(xx)) -> 0.1937529165 | L174: =L173 -> 1.275 | M174: =IF(xx<=x0,1/(a0+b0*SIN(xx)+c0*COS(xx)),M172) -> 0.1937529165 | N174: =N173 -> 0.7406651699 | O174: =IF(xx<=x0,2/((a0-c0)*zz^2+2*b0*zz+(a0+c0)),O172) -> 0.2502322182
C175: 2.58 | D175: 0.3634781936 | E175: 0.6104347953 | F175: 3.467205652 | G175: 0.05582732773 | H175: 0.6104434449 | J175: =J173+dx -> 1.29 | K175: 0 | L175: =IF(xx<=x0,L173+dx,L173) -> 1.29 | M175: =K175 -> 0 | N175: =IF(xx<=x0,TAN(xx/2),N173) -> 0.7523446551 | O175: 0
C176: 2.595 | D176: 0.36968064 | E176: 0.6159334865 | F176: 3.567476338 | G176: 0.05386226734 | H176: 0.6159427704 | J176: =J175 -> 1.29 | K176: =1/(a0+b0*SIN(xx)+c0*COS(xx)) -> 0.1938124947 | L176: =L175 -> 1.29 | M176: =IF(xx<=x0,1/(a0+b0*SIN(xx)+c0*COS(xx)),M174) -> 0.1938124947 | N176: =N175 -> 0.7523446551 | O176: =IF(xx<=x0,2/((a0-c0)*zz^2+2*b0*zz+(a0+c0)),O174) -> 0.2475219829
C177: 2.61 | D177: 0.3761208798 | E177: 0.6215269979 | F177: 3.673260341 | G177: 0.05190436656 | H177: 0.6215369794 | J177: =J175+dx -> 1.305 | K177: 0 | L177: =IF(xx<=x0,L175+dx,L175) -> 1.305 | M177: =K177 -> 0 | N177: =IF(xx<=x0,TAN(xx/2),N175) -> 0.7641566956 | O177: 0
C178: 2.625 | D178: 0.382811208 | E178: 0.6272189886 | F178: 3.785038167 | G178: 0.0499541135 | H178: 0.6272297391 | J178: =J177 -> 1.305 | K178: =1/(a0+b0*SIN(xx)+c0*COS(xx)) -> 0.1938988335 | L178: =L177 -> 1.305 | M178: =IF(xx<=x0,1/(a0+b0*SIN(xx)+c0*COS(xx)),M176) -> 0.1938988335 | N178: =N177 -> 0.7641566956 | O178: =IF(xx<=x0,2/((a0-c0)*zz^2+2*b0*zz+(a0+c0)),O176) -> 0.2448317358
C179: 2.64 | D179: 0.3897647839 | E179: 0.6330133085 | F179: 3.903347787 | G179: 0.04801204833 | H179: 0.6330249088 | J179: =J177+dx -> 1.32 | K179: 0 | L179: =IF(xx<=x0,L177+dx,L177) -> 1.32 | M179: =K179 -> 0 | N179: =IF(xx<=x0,TAN(xx/2),N177) -> 0.7761049128 | O179: 0
C180: 2.655 | D180: 0.3969957071 | E180: 0.6389140122 | F180: 4.028793506 | G180: 0.04607876808 | H180: 0.6389265539 | J180: =J179 -> 1.32 | K180: =1/(a0+b0*SIN(xx)+c0*COS(xx)) -> 0.1940119849 | L180: =L179 -> 1.32 | M180: =IF(xx<=x0,1/(a0+b0*SIN(xx)+c0*COS(xx)),M178) -> 0.1940119849 | N180: =N179 -> 0.7761049128 | O180: =IF(xx<=x0,2/((a0-c0)*zz^2+2*b0*zz+(a0+c0)),O178) -> 0.2421609969
C181: 2.67 | D181: 0.4045191025 | E181: 0.6449253733 | F181: 4.162056501 | G181: 0.04415493201 | H181: 0.6449389605 | J181: =J179+dx -> 1.335 | K181: 0 | L181: =IF(xx<=x0,L179+dx,L179) -> 1.335 | M181: =K181 -> 0 | N181: =IF(xx<=x0,TAN(xx/2),N179) -> 0.7881930432 | O181: 0
C182: 2.685 | D182: 0.4123512144 | E182: 0.6510519006 | F182: 4.303907456 | G182: 0.04224126747 | H182: 0.6510666521 | J182: =J181 -> 1.335 | K182: =1/(a0+b0*SIN(xx)+c0*COS(xx)) -> 0.1941520173 | L182: =L181 -> 1.335 | M182: =IF(xx<=x0,1/(a0+b0*SIN(xx)+c0*COS(xx)),M180) -> 0.1941520173 | N182: =N181 -> 0.7881930432 | O182: =IF(xx<=x0,2/((a0-c0)*zz^2+2*b0*zz+(a0+c0)),O180) -> 0.2395092972
C183: 2.7 | D183: 0.4205095106 | E183: 0.6572983561 | F183: 4.45522176 | G183: 0.04033857661 | H183: 0.6573144079 | J183: =J181+dx -> 1.35 | K183: 0 | L183: =IF(xx<=x0,L181+dx,L181) -> 1.35 | M183: =K183 -> 0 | N183: =IF(xx<=x0,TAN(xx/2),N181) -> 0.8004249428 | O183: 0
C184: 2.715 | D184: 0.4290127991 | E184: 0.6636697734 | F184: 4.616997915 | G184: 0.03844774368 | H184: 0.6636872819 | J184: =J183 -> 1.35 | K184: =1/(a0+b0*SIN(xx)+c0*COS(xx)) -> 0.1943190152 | L184: =L183 -> 1.35 | M184: =IF(xx<=x0,1/(a0+b0*SIN(xx)+c0*COS(xx)),M182) -> 0.1943190152 | N184: =N183 -> 0.8004249428 | O184: =IF(xx<=x0,2/((a0-c0)*zz^2+2*b0*zz+(a0+c0)),O182) -> 0.2368761789
C185: 2.73 | D185: 0.4378813581 | E185: 0.6701714796 | F185: 4.790379973 | G185: 0.03656974335 | H185: 0.6701906251 | J185: =J183+dx -> 1.365 | K185: 0 | L185: =IF(xx<=x0,L183+dx,L183) -> 1.365 | M185: =K185 -> 0 | N185: =IF(xx<=x0,TAN(xx/2),N183) -> 0.812804593 | O185: 0
C186: 2.745 | D186: 0.4471370813 | E186: 0.6768091179 | F186: 4.97668506 | G186: 0.03470564995 | H186: 0.6768301092 | J186: =J185 -> 1.365 | K186: =1/(a0+b0*SIN(xx)+c0*COS(xx)) -> 0.1945130797 | L186: =L185 -> 1.365 | M186: =IF(xx<=x0,1/(a0+b0*SIN(xx)+c0*COS(xx)),M184) -> 0.1945130797 | N186: =N185 -> 0.812804593 | O186: =IF(xx<=x0,2/((a0-c0)*zz^2+2*b0*zz+(a0+c0)),O184) -> 0.2342611949
C187: 2.76 | D187: 0.4568036409 | E187: 0.6835886733 | F187: 5.177437389 | G187: 0.03285664786 | H187: 0.6836117536 | J187: =J185+dx -> 1.38 | K187: 0 | L187: =IF(xx<=x0,L185+dx,L185) -> 1.38 | M187: =K187 -> 0 | N187: =IF(xx<=x0,TAN(xx/2),N185) -> 0.8253361053 | O187: 0
C188: 2.775 | D188: 0.4669066707 | E188: 0.6905165006 | F188: 5.394410632 | G188: 0.03102404324 | H188: 0.6905419539 | J188: =J187 -> 1.38 | K188: =1/(a0+b0*SIN(xx)+c0*COS(xx)) -> 0.1947343284 | L188: =L187 -> 1.38 | M188: =IF(xx<=x0,1/(a0+b0*SIN(xx)+c0*COS(xx)),M186) -> 0.1947343284 | N188: =N187 -> 0.8253361053 | O188: =IF(xx<=x0,2/((a0-c0)*zz^2+2*b0*zz+(a0+c0)),O186) -> 0.2316639083
C189: 2.79 | D189: 0.4774739723 | E189: 0.6975993555 | F189: 5.629681131 | G189: 0.02920927722 | H189: 0.6976275156 | J189: =J187+dx -> 1.395 | K189: 0 | L189: =IF(xx<=x0,L187+dx,L187) -> 1.395 | M189: =K189 -> 0 | N189: =IF(xx<=x0,TAN(xx/2),N187) -> 0.8380237275 | O189: 0
C190: 2.805 | D190: 0.4885357477 | E190: 0.7048444284 | F190: 5.885695341 | G190: 0.02741394083 | H190: 0.7048756898 | J190: =J189 -> 1.395 | K190: =1/(a0+b0*SIN(xx)+c0*COS(xx)) -> 0.1949828957 | L190: =L189 -> 1.395 | M190: =IF(xx<=x0,1/(a0+b0*SIN(xx)+c0*COS(xx)),M188) -> 0.1949828957 | N190: =N189 -> 0.8380237275 | O190: =IF(xx<=x0,2/((a0-c0)*zz^2+2*b0*zz+(a0+c0)),O188) -> 0.2290838923
C191: 2.82 | D191: 0.5001248627 | E191: 0.7122593829 | F191: 6.165356145 | G191: 0.02563979189 | H191: 0.7122942146 | J191: =J189+dx -> 1.41 | K191: 0 | L191: =IF(xx<=x0,L189+dx,L189) -> 1.41 | M191: =K191 -> 0 | N191: =IF(xx<=x0,TAN(xx/2),N189) -> 0.8508718494 | O191: 0
C192: 2.835 | D192: 0.5122771459 | E192: 0.719852398 | F192: 6.472134503 | G192: 0.02388877423 | H192: 0.7198913607 | J192: =J191 -> 1.41 | K192: =1/(a0+b0*SIN(xx)+c0*COS(xx)) -> 0.1952589329 | L192: =L191 -> 1.41 | M192: =IF(xx<=x0,1/(a0+b0*SIN(xx)+c0*COS(xx)),M190) -> 0.1952589329 | N192: =N191 -> 0.8508718494 | O192: =IF(xx<=x0,2/((a0-c0)*zz^2+2*b0*zz+(a0+c0)),O190) -> 0.2265207299
C193: 2.85 | D193: 0.5250317278 | E193: 0.7276322145 | F193: 6.810215576 | G193: 0.0221630396 | H193: 0.727675984 | J193: =J191+dx -> 1.425 | K193: 0 | L193: =IF(xx<=x0,L191+dx,L191) -> 1.425 | M193: =K193 -> 0 | N193: =IF(xx<=x0,TAN(xx/2),N191) -> 0.8638850091 | O193: 0
C194: 2.865 | D194: 0.5384314294 | E194: 0.7356081882 | F194: 7.184692378 | G194: 0.0204649726 | H194: 0.7356575848 | J194: =J193 -> 1.425 | K194: =1/(a0+b0*SIN(xx)+c0*COS(xx)) -> 0.1955626085 | L194: =L193 -> 1.425 | M194: =IF(xx<=x0,1/(a0+b0*SIN(xx)+c0*COS(xx)),M192) -> 0.1955626085 | N194: =N193 -> 0.8638850091 | O194: =IF(xx<=x0,2/((a0-c0)*zz^2+2*b0*zz+(a0+c0)),O192) -> 0.2239740135
C195: 2.88 | D195: =1/(a0+b0*SIN(x)+c0*COS(x)) -> 0.5525232049 | E195: 0.743790348 | F195: 7.601826062 | G195: =2/((a0-c0)*z^2+2*b0*z+(a0+c0)) -> 0.01879721935 | H195: 0.7438463762 | J195: =J193+dx -> 1.44 | K195: 0 | L195: =IF(xx<=x0,L193+dx,L193) -> 1.44 | M195: =K195 -> 0 | N195: =IF(xx<=x0,TAN(xx/2),N193) -> 0.8770678999 | O195: 0
C196: =C195+dx -> 2.895 | D196: 0.5673586514 | E196: =E195+(D195+D196)*dx/2 -> 0.7521894619 | F196: =TAN(x/2) -> 8.069401212 | G196: 0.01716272031 | H196: 0.7522533633 | J196: =J195 -> 1.44 | K196: =1/(a0+b0*SIN(xx)+c0*COS(xx)) -> 0.1958941083 | L196: =L195 -> 1.44 | M196: =IF(xx<=x0,1/(a0+b0*SIN(xx)+c0*COS(xx)),M194) -> 0.1958941083 | N196: =N195 -> 0.8770678999 | O196: =IF(xx<=x0,2/((a0-c0)*zz^2+2*b0*zz+(a0+c0)),O194) -> 0.2214433445
C197: 2.91 | D197: 0.5829945945 | E197: 0.7608171112 | F197: 8.597219191 | G197: 0.01556474826 | H197: =H196+(G196+G197)*(F197-F196)/2 -> 0.7608904365 | J197: =J195+dx -> 1.455 | K197: 0 | L197: =IF(xx<=x0,L195+dx,L195) -> 1.455 | M197: =K197 -> 0 | N197: =IF(xx<=x0,TAN(xx/2),N195) -> 0.8904253767 | O197: 0
C198: 2.925 | D198: 0.5994937661 | E198: 0.769685774 | F198: 9.197796496 | G198: 0.01400695199 | H198: 0.7697704825 | J198: =J197 -> 1.455 | K198: =1/(a0+b0*SIN(xx)+c0*COS(xx)) -> 0.1962536359 | L198: =L197 -> 1.455 | M198: =IF(xx<=x0,1/(a0+b0*SIN(xx)+c0*COS(xx)),M196) -> 0.1962536359 | N198: =N197 -> 0.8904253767 | O198: =IF(xx<=x0,2/((a0-c0)*zz^2+2*b0*zz+(a0+c0)),O196) -> 0.2189283333
C199: 2.94 | D199: 0.616925589 | E199: 0.7788089191 | F199: 9.887374892 | G199: 0.01249340726 | H199: 0.7789075201 | J199: =J197+dx -> 1.47 | K199: 0 | L199: =IF(xx<=x0,L197+dx,L197) -> 1.47 | M199: =K199 -> 0 | N199: =IF(xx<=x0,TAN(xx/2),N197) -> 0.9039624639 | O199: 0
C200: 2.955 | D200: 0.6353670908 | E200: 0.7882011142 | F200: 10.68741876 | G200: 0.0110286759 | H200: 0.7883168693 | J200: =J199 -> 1.47 | K200: =1/(a0+b0*SIN(xx)+c0*COS(xx)) -> 0.1966414125 | L200: =L199 -> 1.47 | M200: =IF(xx<=x0,1/(a0+b0*SIN(xx)+c0*COS(xx)),M198) -> 0.1966414125 | N200: =N199 -> 0.9039624639 | O200: =IF(xx<=x0,2/((a0-c0)*zz^2+2*b0*zz+(a0+c0)),O198) -> 0.2164285989
... 203 more rows
